{"text_format":"1","workbook":"xlsx","n_sheets":26,"sheets":["Cover Page","Facility Info","Contents","Operational Data","Operational Summary","Perf. Form 1","Energy Form 1","Permit Compliance","Improvements","Public Liasion","CO2 N2O","Residue Quality ","Water","Air (periodic) Q1","Air (periodic) Q2","Air (periodic) H2","Air (CEMS)","HCl","SO2","NOx","TOC","Particulates","CO 0.5 hourly","CO 95% 10 min","NH3","Template changes log"],"not_rendered":{"charts":8,"images":4,"macros":1,"external_links":0,"defined_names":26,"comments":0,"pivot_tables":0},"unopened":[],"bounds":{"document_bytes":16777216,"sheet_cells":100000,"rows_first":2000,"rows_last":500,"rows_between":2000,"halvings":0,"cell_chars":16384,"cell_head_chars":4096},"cells_cut":0,"cells_raw":0,"read":"whole","date_system":"1900"}

{"sheet":"Cover Page","index":0,"n_rows":53,"n_cols":14,"rows_kept":53,"cut":false,"hidden":false,"merged":[[48,2,48,3],[48,6,48,8],[52,2,52,3],[36,1,36,8],[40,2,40,8],[42,2,42,4],[44,2,44,4],[46,2,46,3],[46,6,46,8],[13,13,18,15],[34,1,34,8],[0,3,5,6],[7,1,23,8],[28,1,28,8],[30,1,30,8],[32,1,32,8]]}
[]
[null,null,null,null,null,null,null,null,null,null,null,null,null,"Version 24.2a (for incinerators) - 27/11/24"]
[]
[null,null,null,null,null,null,null,null,null,null,null,null,null,"Note that there is another version of this template available for co-incinerators"]
[]
[]
[]
[null,"Add photo"]
[]
[]
[]
[]
[null,null,null,null,null,null,null,null,null,null,null,null,null,"Notes:"]
[null,null,null,null,null,null,null,null,null,null,null,null,null,"This template may require adjustments by individual operators to meet specific reporting requirements as defined in the site Permit(s)"]
[]
[]
[]
[]
[]
[]
[]
[]
[]
[]
[]
[]
[]
[]
[null,"Annual Performance Report 2024"]
[]
[null,"Permit EPR/RP3004MA v005"]
[]
[null,"Newhurst Energy Recovery Facility"]
[]
[]
[]
[null,"Encyclis Ltd"]
[]
[null,"Year:",2024]
[]
[null,"Address:","Ashby Road, Leicestershire, LE12 9BU"]
[]
[null,"Tel: "]
[]
[null,"Email: ","kathryn.goldacre@encyclis.com"]
[]
[null,"Prepared by:","Kathryn Goldacre",null,null,"Position:","Health, Safety & Environmental Manager"]
[]
[null,"Approved by:","Jim Thompson",null,null,"Position:","Plant Manager"]
[]
[null,"Version:",2]
[]
[null,"Issue Date:","2025-01-29"]

{"sheet":"Facility Info","index":1,"n_rows":22,"n_cols":11,"rows_kept":22,"cut":false,"hidden":false,"merged":[[4,0,17,8],[21,0,53,8],[4,10,13,13],[21,10,30,13]]}
[{"$f":"+'Cover Page'!$B$29","v":"Annual Performance Report 2024"},null,null,null,{"$f":"+'Cover Page'!$B$33","v":"Newhurst Energy Recovery Facility"}]
[]
["Plant Description and Design",null,null,null,null,null,null,null,null,null,"Notes:"]
[]
["Newhurst Energy Recovery Facility (ERF) is located at junction 23 of the M1 near Shepshed in Leicestershire at an approximate National Grid Reference (NGR) of SK 489 181, around 5km from the centre of Loughborough. The environmental setting to the site can be classed as ‘semi-urban’, with the A512 Ashby Road running to the north, northwest and northeast, beyond which lies Shepshed town at a distance of approximately 500m. Open space and agricultural land lies predominantly to the west and south of the site. \nThe facility treats up to 455000 tonnes of non-recyclable waste from the local area and further afield. \nIn December 2023 a variation of the permit was granted to increase the amount of waste which can be processed to 455000 tonnes allowing for outages at up to 18 months spacing and reduction of average waste CV as increased recycling, in particular of plastics, occurs.\n\nThe facility is designed to be able provide combined heat & power (CHP) allowing export of heat to local offtakers, options are being explored.\nThe site uses a state-of-the-art combustion control system, with 5-pass boiler. The steam turbine generates 44MW of electricity, enough to power the site and approx. 80,000 homes.\nThe plant is equipped with the complex ‘XeroSorp’ dry flue gas treatment system to minimise emissions.\nThe site is a joint venture between Encyclis and Biffa with Encyclis having the contract to operate and maintain the plant.",null,null,null,null,null,null,null,null,null,"Include summary of plant design, design capacity, no. of combustion lines, electrical and heat capacity and any other general information that describes the facility, its location and purpose "]
[]
[]
[]
[]
[]
[]
[]
[]
[]
[]
[]
[]
[]
[]
["Summary of Operational Processes and Procedures"]
[]
["Incoming refuse collection vehicles and bulk transport vehicles enter the site and proceed to the incoming weighbridge. After weighing in, the vehicles continue to the enclosed reception hall where they will discharge their load into the waste storage bunker. Vehicle loads are inspected randomly in the Tipping Hall to confirm the nature of incoming waste. Once vehicles have deposited their waste they leave the site via a second weighbridge. Potential emissions of odour and dust from the tipping hall and refuse bunkers are controlled by forced draught fans located above the refuse bunkers. These draw air from the bunker hall and reception area into the furnace to feed the combustion process, creating a slight negative pressure. Whilst the plant is offline, a carbon odour control system is active to ensure all odour remains controlled. The waste combustion takes place on a HZI moving grate, the heat generated being used to create superheated steam which is used to drive the steam turbine and generate electricity. Heat from turbine bleeds can be used for combined heat and power systems and is also used for pre-heating of combustion air to maximise efficiency. Condensing of the steam takes place via air cooled condensing system and the condensate cycles back around in a closed system (other than necessary top up). Emission control is via injection of ammonia into the furnace for NOx control via SNCR technology. At the end of the boiler and gas path is the HZI Xerosorp system where lime and activated carbon are added to remove acidic gases, dioxins, furans and heavy metals before this is all filtered by a bag filter system which removes the lime and carbon added and particulates from the combustion process producing APCr.\nEmissions are measured continuously in stack and by extractive stack measurements as required by the environmental permit. \nResidues from the process, IBA and APCr, are both sent to specialist reprocessing sites. IBA has metals removed for recyling and is reprocessed into IBAA (Incinerator Bottom Ash Aggregate). The APCr is sent to OCO Technology who use accelerated cabonation technology to produce a carbon negative aggregate material which encapsulates the absorbed substances from the APCr.\nMaintenance is controlled by a CMMS system and consists of planned preventative maintenance (ppm), derived from both experience of the plant and OEM requirements, and reactive maintenance. An annual shutdown period, during which maintenance and statutory inspections are carried out, is completed.\nThe plant operates a document control system meeting the requirements of the Encyclis document management system and ISO 9001, 14001 and 45001.\n\nCommisioning of the site took place from late 2022 until 24th May 2024 at which point the site was handed over from the construction team to the O&M team.\nTakeover by Encyclis - 24th May 2023.",null,null,null,null,null,null,null,null,null,"Include summary of key processes and procedures such as (but not limited to); waste reception, control rooms, grate, bed and boiler, energy & heat  generation, cooling systems, residue management, emission controls, health and safety systems, maintenance"]

{"sheet":"Contents","index":2,"n_rows":45,"n_cols":11,"rows_kept":45,"cut":false,"hidden":false,"merged":[[44,0,47,9],[37,1,37,6],[38,1,38,6],[39,1,39,6],[40,1,40,6],[41,1,41,6],[42,1,42,6],[36,1,36,6],[22,1,22,6],[23,1,23,6],[24,1,24,6],[27,1,27,6],[28,1,28,6],[29,1,29,6],[30,1,30,6],[31,1,31,6],[32,1,32,6],[35,1,35,6],[21,1,21,6],[9,1,9,6],[10,1,10,6],[11,1,11,6],[13,1,13,6],[14,1,14,6],[15,1,15,6],[16,1,16,6],[17,1,17,6],[18,1,18,6],[19,1,19,6],[20,1,20,6],[12,1,12,6],[4,10,7,14],[8,1,8,6],[3,1,3,6],[4,1,4,6],[5,1,5,6],[6,1,6,6],[7,1,7,6]]}
[{"$f":"+'Cover Page'!$B$29","v":"Annual Performance Report 2024"},null,null,null,{"$f":"+'Cover Page'!$B$33","v":"Newhurst Energy Recovery Facility"}]
[]
["Contents",null,null,null,null,null,null,null,null,null,"Notes:"]
["Section","Subject",null,null,null,null,null,"Page ",null,null,"Section references and Page nos. to be inserted"]
[null,"Facility Information",null,null,null,null,null,2,null,null,"Sections and Subjects may require adjustment by individual operators to meet specific reporting requirements as defined in the sites Permit(s)"]
[null,"Operational Data",null,null,null,null,null,4]
[null,"Operational Summary",null,null,null,null,null,6]
[null,"Performance Form 1",null,null,null,null,null,7]
[null,"Energy Form 1",null,null,null,null,null,9]
[null,"Permit Compliance",null,null,null,null,null,10]
[null,"Improvements",null,null,null,null,null,13]
[null,"Public Liaison",null,null,null,null,null,14]
[null,"Carbon dioxide and nitrous oxide emissions",null,null,null,null,null,15]
[null,"Residue Quality ",null,null,null,null,null,17]
[null,"Emissions to Water",null,null,null,null,null,18]
[null,"Emissions to Air (periodically monitored)",null,null,null,null,null,19]
[null,"Emissions to Air (continuously monitored)",null,null,null,null,null,22]
[null,"Hydrogen Chloride emissions",null,null,null,null,null,24]
[null,"Sulphur Dioxide emissions",null,null,null,null,null,25]
[null,"Oxides of Nitrogen emissions",null,null,null,null,null,26]
[null,"Total Organic Carbon emissions",null,null,null,null,null,27]
[null,"Particulate Matter emissions",null,null,null,null,null,28]
[null,"Carbon Monoxide emissions",null,null,null,null,null,29]
[null,"Ammonia emissions",null,null,null,null,null,31]
[]
[]
["Version Control"]
["Section","Information",null,null,null,null,null,"Date"]
[]
[]
[]
[]
[]
[]
["Distribution"]
["Copy","Name, Role",null,null,null,null,null,"No."]
[]
[]
[]
[]
[]
[]
[]
[]
["This report is required under the Industrial Emissions Directive’s Article 55(2) requirements on reporting and public information on waste incineration plants and co-incineration plants, which require the operator to produce an annual report on the functioning and monitoring of the plant and make it available to the public. "]

{"sheet":"Operational Data","index":3,"n_rows":75,"n_cols":17,"rows_kept":75,"cut":false,"hidden":false,"merged":[[16,2,16,5],[69,2,69,5],[70,2,70,5],[54,2,54,5],[58,2,58,5],[31,2,31,5],[32,2,32,5],[47,0,47,7],[5,9,7,9],[62,0,66,0],[36,1,46,1],[3,1,3,2],[7,1,19,1],[26,1,29,1],[31,1,32,1],[9,9,20,9],[24,9,28,9],[63,2,63,5],[64,2,64,5],[65,2,65,5],[66,2,66,5],[48,0,48,7],[21,0,23,7],[15,2,15,5]]}
[{"$f":"+'Cover Page'!$B$29","v":"Annual Performance Report 2024"},null,null,null,{"$f":"+'Cover Page'!$B$33","v":"Newhurst Energy Recovery Facility"}]
[]
["Operational Data"]
["Plant Size",455000,null,"tonnes pa",null,"MWth",null,"MWe",null,"Notes:"]
["No. of combustion lines",1,null,"No. of Turbines:",null,1,null,null,null,"* - RDF to include SRF "]
[null,null,null,null,null,null,null,null,null,"** - Combusted tonnage = tonnes delivered in period + (tonnes in bunker at start of period – tonnes in bunker at end of period), or equivalent calculation depending on plant type"]
["Waste types received","Unit","Q1","Q2","Q3","Q4","Year Total","%"]
["Household / Local Authority","tonnes",20968.86,20529.84,23645.1,27472.2,{"$f":"SUM(C8:F8)","v":92616},{"$f":"IF(G8>0,G8/$G$18,\"-\")","v":0.26694460233696427}]
["Commercial & Industrial ",null,60343.98,48129.440000000002,54424.89,58514.559999999998,{"$f":"SUM(C9:F9)","v":221412.87},0.63817235180137311,null,"*** - CHP plants only"]
["Hazardous ",null,0,0,0,0,0,"-",null,"**** Availability Definition: 'the availability of a line is to be calculated by the number of hours the line reported Continuously Monitored emission levels to the Regulator through the calendar year divided by the total number of hours in that year. \n\nThe overall plant availability is calculated as the Mean of all lines in the plant. For clarity this includes periods of abnormal operation.'  \n\nRationale: The primary function of an Energy from Waste facility is the disposal of waste. It follows therefore that the availability of a plant is determined by the period of time a facility spends undertaking this activity."]
["Clinical (180104 + 180109)",null,95.68,339.64,700.04,455.52,1590.8799999999999,4.5853505762052963E-3]
["Waste wood (biomass) ",null,0,0,0,0,0,"-"]
["Refuse Derived Fuel * - H'hold/LA",null,47.4,26.18,0,0,{"$f":"SUM(C13:F13)","v":73.58},2.1207765224101486E-4]
["Refuse Derived Fuel *  - C&I",null,8206.06,8045.78,6003.8,8988.3799999999992,31244.019999999997,9.005379733856092E-2]
["Other [020103]",null,2.2599999999999998,0.86,1.74,6.18,11.04,3.1820294655352049E-5]
["Other [Please specify]",null,"N/A",null,null,null,0,"-"]
["Other [Please specify]",null,"N/A",null,null,null,0,"-"]
["Total waste received",null,{"$f":"SUM(C8:C17)","v":89664.239999999976},{"$f":"SUM(D8:D17)","v":77071.739999999991},{"$f":"SUM(E8:E17)","v":84775.569999999992},{"$f":"SUM(F8:F17)","v":95436.84},346948.39]
["Rejected Waste ",null,3,2,0,2,{"$f":"SUM(C19:F19)","v":7},{"$f":"IF(G19>0,G19/$G$18,\"-\")","v":2.0175911466255829E-5}]
["Unprocessed waste transferred out",null,0,0,0,0,{"$f":"SUM(C20:F20)","v":0},{"$f":"IF(G20>0,G20/$G$18,\"-\")","v":"-"}]
["Total waste combusted **",null,90668.2,78557.899999999994,85535.1,96041,{"$f":"SUM(C21:F21)","v":350802.19999999995}]
["Household / Local Authority = 200301, 191212 & 191210 direct municipal waste\nCommercial & Industrial = 200301, 191212 & 191210 other sources\nTotal waste combusted **  = as measured by waste cranes / DCS"]
[]
[]
[null,null,null,null,null,null,null,null,null,"Password for protected cells\nA password has been set to prevent accidental  editing of cells with formulae. \nIf you still need to make an edit for some reason then the password = 1234"]
["Energy Usage / Export","Unit","Q1","Q2","Q3","Q4","Year Total","KWh/te"]
["Power Generated","MWh",88983.8,70080.3,81255.600000000006,93651.1,{"$f":"SUM(C27:F27)","v":333970.80000000005},{"$f":"IF(G27>0,G27*1000/$G$21,\"-\")","v":952.02025528916329}]
["Power Exported",null,82783.600000000006,64831.7,75045.8,86924.1,{"$f":"SUM(C28:F28)","v":309585.19999999995},{"$f":"IF(G28>0,G28*1000/$G$21,\"-\")","v":882.50643810101531}]
["Power Used on site",null,6372,5912.2,6453.2,6666.4,{"$f":"SUM(C29:F29)","v":25403.800000000003},{"$f":"IF(G29>0,G29*1000/$G$21,\"-\")","v":72.416307537409992}]
["Power Imported",null,152,675,267.60000000000002,6.9,1101.5,{"$f":"IF(G30>0,G30*1000/$G$21,\"-\")","v":3.1399461006800986}]
["Parasitic Load","%",{"$f":"IF(C27>0,1-C28/(C27+C30),\"-\")","v":7.126429560288905E-2},{"$f":"IF(D27>0,1-D28/(D27+D30),\"-\")","v":8.3719523484459879E-2},{"$f":"IF(E27>0,1-E28/(E27+E30),\"-\")","v":7.9454682838750346E-2},{"$f":"IF(F27>0,1-F28/(F27+F30),\"-\")","v":7.1898823378675591E-2},{"$f":"IF(G27>0,1-G28/(G27+G30),\"-\")","v":7.606447921836601E-2}]
["Thermal Energy Produced ***","MWh","N/A",null,null,null,{"$f":"SUM(C32:F32)","v":0},{"$f":"IF(G32>0,G32*1000/$G$21,\"-\")","v":"-"}]
["Thermal Energy Exported ***",null,"N/A",null,null,null,0,{"$f":"IF(G33>0,G33*1000/$G$21,\"-\")","v":"-"}]
["R1 value (if applicable)","R1",null,null,null,null,0.91]
[]
["Waste Disposal & Recovery","Unit","Q1","Q2","Q3","Q4","Year Total","% inputs"]
["APC Residues - produced","tonnes",2399.5,2011.06,2181.08,2430.5,{"$f":"SUM(C37:F37)","v":9022.14},{"$f":"IF(G37>0,G37/$G$21,\"-\")","v":2.5718595835487922E-2}]
["IBA - produced",null,16778.580000000002,15863.7,17012.96,17843,67498.240000000005,{"$f":"IF(G38>0,G38/$G$21,\"-\")","v":0.19241110802611847}]
["Metals recycling (total) 200140",null,0,1.56,0,161.04,{"$f":"SUM(C39:F39)","v":162.6},4.6350906579263189E-4]
["200301 - Mixed Municipal",null,0.84,3.5,3.52,2.9,{"$f":"SUM(C40:F40)","v":10.76},{"$f":"IF(G40>0,G40/$G$21,\"-\")","v":3.067255564531808E-5}]
["170201 - Wood",null,0.74,0.94,0,0.64,2.3199999999999998,6.6134134848641204E-6]
["150106 - Mixed Packaging",null,2.64,0.02,0,0,{"$f":"SUM(C42:F42)","v":2.66},7.5826206335080011E-6]
["200304 Septic tank sludge",null,182.49,155.41999999999999,176,159.63999999999999,673.55,1.920027867556133E-3]
["Boiler water",null,90.47,0,65,6.1,{"$f":"SUM(C44:F44)","v":161.57},{"$f":"IF(G44>0,G44/$G$21,\"-\")","v":4.6057293825409309E-4}]
["161003 aqueous concentrates containing hazardous substances",null,0,0,28,0,28,7.9817059300084223E-5]
["130508 mixtures of wastes from grit chambers and oil/water separators (seperator annual service)",null,0,0,12.03,0,{"$f":"SUM(C46:F46)","v":12.03},{"$f":"IF(G46>0,G46/$G$21,\"-\")","v":3.4292829406429038E-5}]
["170504 soil and stones  (from onsite construction project Q4).",null,0,0,0,260,260,7.4115840778649631E-4]
["From quarterly waste returns as removed from site"]
["Metals recyling (total is metals from plant operation & maintenance and, since Nov 2024, large items of metal from IBA which is now removed by a separate offtaker rather than seperated and recycled at the IBA reprocessing facility."]
[null,null,null,null,null,null,null,null,null,null,null,"Q1","Q2","Q3","Q4","Density"]
["Raw Material Usage","Unit","Q1","Q2","Q3","Q4","Year Total","kg or Ltr /te",null,null,"Ammonia L",28329.599999999999,24609.8,15202.3,4931.2,0.91100000000000003]
["Mains Water","ltrs",8608500,10141000,11100600,7076800,{"$f":"SUM(C52:F52)","v":36926900},{"$f":"IF(G52>0,G52/$G$21,\"-\")","v":105.26416310958143},null,null,"Ammonia kgs",{"$f":"L51*$P$51","v":25808.265599999999},{"$f":"M51*$P$51","v":22419.5278},13849.2953,4492.3231999999998,null,{"$f":"SUM(L52:O52)","v":66569.411899999992}]
["Other Water","ltrs",0,0,0,0,0,{"$f":"IF(G53>0,G53/$G$21,\"-\")","v":"-"},null,null,"PAC t",22.7,20.3,22.3,23.6]
["Ammonia","kgs",25808,22420,13849,4492.3,66569.3,0.18976306305946775,null,null,"PAC kgs",{"$f":"L53*1000","v":22700},{"$f":"M53*1000","v":20300},{"$f":"N53*1000","v":22300},23600,null,{"$f":"SUM(L54:O54)","v":88900}]
["Urea","kgs","N/A",null,null,null,{"$f":"SUM(C55:F55)","v":0},"-",null,null,"Lime t",726.4,695.8,760.6,823.3]
["Activated Carbon","kgs",22700,20300,22300,23600,88900,0.25341916327776737,null,null,"Lime kgs",{"$f":"L55*1000","v":726400},{"$f":"M55*1000","v":695800},{"$f":"N55*1000","v":760600},{"$f":"O55*1000","v":823300},null,3006100]
["Lime / hydrated lime","kgs",726400,695800,760600,823300,3006100,8.5692164986422554,null,null,"Diesel"]
["Fuel oil (burners)","ltrs",55790.9,121114.4,17393.7,null,194299,0.55387052874810938]
["Gas","cuf","N/A",null,null,null,0]
["Other - HVO (burners)","litrs",null,null,79270,45617.7,124887.7,0.35600603416968313]
[]
["Summary ","Line/Unit","Q1","Q2","Q3","Q4","Year Total",null,"Hrs in year "]
["Availability of waste combustion by line, hrs ****",{"$f":"+B5","v":1},2110.3000000000002,1818.03,2005.12,2198.5,{"$f":"SUM(C63:F63)","v":8131.95},{"$f":"+G63/$I$63","v":0.92576844262295077},8784,"Change this figure to 8784 in a leap year"]
[null,2,"N/A",null,null,null,0,{"$f":"+G64/$I$63","v":0}]
[null,3,"N/A",null,null,null,0,0]
[null,4,"N/A",null,null,null,0,0]
[null,5,"N/A",null,null,null,{"$f":"SUM(C67:F67)","v":0},0]
["Overall Availability, mean avg. of all lines, hrs",null,{"$f":"C63","v":2110.3000000000002},{"$f":"D63","v":1818.03},2005.12,2198.5,8131.95,0.92576844262295077]
["Hours of turbine operations, hrs",1,2089.4,1667.2,1982.3,2207.4,7946.3000000000011,0.90463342440801464]
["Hours of turbine operations, hrs",2,"N/A",null,null,null,0,0]
["Hours of heat / steam export",null,"N/A",null,null,null,0,{"$f":"IF(B71>0,G70/I63,\"n/a\")","v":"n/a"}]
["Net Calorific Value of waste","MJ/kg"]
["Abnormal Events","qty.",0,0,0,0,0,{"$f":"IF(G73>0,\"yes\",\"no\")","v":"no"}]
["Abnormal operation","hours",0,0,0,0,0,{"$f":"+(G74)/I63","v":0}]
["Permit Breaches","qty.",0,0,0,0,0,{"$f":"IF(G75>0,\"yes\",\"no\")","v":"no"}]

{"sheet":"Operational Summary","index":4,"n_rows":59,"n_cols":11,"rows_kept":59,"cut":false,"hidden":false,"merged":[[69,1,69,8],[54,10,64,13],[63,1,63,8],[59,1,59,8],[55,1,55,8],[56,1,56,8],[57,1,57,8],[58,1,58,8],[68,1,68,8],[64,1,64,8],[65,1,65,8],[66,1,66,8],[67,1,67,8],[60,1,60,8],[61,1,61,8],[62,1,62,8],[4,0,26,8],[30,0,51,8],[4,10,13,13],[30,10,39,13],[54,1,54,8],[53,1,53,8]]}
[{"$f":"+'Cover Page'!$B$29","v":"Annual Performance Report 2024"},null,null,null,{"$f":"+'Cover Page'!$B$33","v":"Newhurst Energy Recovery Facility"}]
[]
["Summary of Plant Operations and Maintenance during the reporting year",null,null,null,null,null,null,null,null,null,"Notes:"]
[]
["2024 was the first full year of operations for the Newhurst ERF site.\n\nThrough the year the steam turbine has maintained availability and has operated without issue consistently. Outside the planned 14 day maintenance outage period in April 2024 and 7 day period in September 2024 the plant has maintained 92.6% availability.\nThe CEMS underwent AST in February 2024 and all measurands checked passed AST, the QAL2 functions from January 2023 being maintained. An issue with the duty dust analyser developed late in 2023 and so the combi-probe this forms part of was replaced. Although this was a like for like replacement duty dust and the flow analyser (duty / standby) underwent QAL2 - this was completed alongside the AST, the new QAL2 factors being applied on receipt of the report 14th March 2024. \nIn March 2024 the duty FID started to show signs of a problem developing. The FID unit was therefore replaced. As per M20 section 3.5.20 we used the same calibration function (unit replaced with an identical one) with an AST planned in alongside the forthcoming stack test meanwhile checking the measurements against the original standby unit. Unfortunately the standby FID developed the same symptoms and was replaced in May 2024, both new units therefore underwent QAL2 in May 2024 with the new QAL2 factors applied on receipt of the report on June 21st 2024.\n\nFrom restart after the September maintenance outage the site has used HVO (Hydrotreated Vegetable Oil) for the furnace burners, mobile plant and on site generators (emergency back up). This produces less oxides of sulphur, oxides of nitrogen, CO and CO2. \n \nAll Improvement Conditions have been completed.\n\nIn July 2024 the site underwent a 3 day audit as part of the ongoing surveillence for the ISO 9001, 14001 and 45001 certification. 3 minor non-conformances, 7 Opportunities for Improvement and 12 examples of good practice found.\n\nFrom 1st October 2024 the company who constructed the Newhurst site - HZI (HITACHI ZOSEN INOVA) rebranded to Kanadevia Inova. Although this happened part of the way through the year they are referred to as Kanadevia (or Kanadevia Inova), their current name, throughout.",null,null,null,null,null,null,null,null,null,"Include summary of key operational and/or maintenance activity undertaken in the year, such as any major component upgrades and/or replacements "]
[]
[]
[]
[]
[]
[]
[]
[]
[]
[]
[]
[]
[]
[]
[]
[]
[]
[]
[]
[]
[]
[]
[]
["Summary of Residue Handling for the reporting year"]
[]
["All IBA produced on site (including the metal content) was collected from site by Blue Phoenix and taken \nfor reprocessing at their Sheffield reprocessing site (EPR/FP3732WU) until the start of November 2024.\nThey remove and recycle the ferrous and non-ferrous metals and then create IBAA (Incinerator Bottom Ash \nAggregate) from the remaining material.  \nFrom 14th November 2024 the IBA has been taken to the Encyclis owned Wellingborough IBA Facility run by Day Aggregates (KP3902MB). Metals are collected seperately by Day group for re-processing.\nThroughout 2024 IBA has undergone routine ESA hazard analysis (2 samples / month analysed by WRc) and all samples have been shown to be non-hazardous. The first sample in the month of October underwent the full annual characterisation including HP1-HP15. It also included the Total soluble fraction and metals (Antimony, Cadmium, Thallium, Mercury, Lead, Chromium, Copper, Manganese, Nickel, Arsenic, Cobalt, Vanadium, Zinc) soluble fractions as required by the permit Table S3.4 before disposal at a new site in readiness for the move to Wellingborough as the disposal site. The site IBA has maintained its non-hazardous staus.\nThe IBA was sampled monthly for TOC until June 2024 (end of first year of operation) and quarterly after that as per permit requirements. All samples have remained under the 3% ELV.\n\nThe APCr produced at site is sent to one of the four O.C.O. plants for processing through their Accelerated Carbonation Technology where the APCr waste is reacted with Carbon Dioxide in a carbon capture process (CCU) to produce a calcium carbonate based aggregate which has End of Waste approval from the Environment Agency.",null,null,null,null,null,null,null,null,null,"Include in here a summary of residue handling regimes and destinations "]
[]
[]
[]
[]
[]
[]
[]
[]
[]
[]
[]
[]
[]
[]
[]
[]
[]
[]
[]
[]
[]
[]
[{"$f":"+'Cover Page'!C39","v":2024},"Plant shut-downs"]
["Date","Reason for shut-down",null,null,null,null,null,null,null,null,"Provide a very brief reason for plant shut-down e.g. \"Shut-down prior to major outage\"; \"Emergency shut-down due to boiler tube leak\"\n\nThere is no need to include periods of hot-standby here (e.g. to clear feed chute hopper blockages).\n\nFor clinical waste incinerators which require regular shut-downs for boiler cleaning, there is no need to record these here. "]
["9th March","Drag link conveyor blockage & rebuild"]
["17th April","Shutdown prior to major outage"]
["20th June","Shutdown after ash extractor fire "]
["9th September","Shutdown prior to outage"]

{"sheet":"Perf. Form 1","index":5,"n_rows":57,"n_cols":10,"rows_kept":57,"cut":false,"hidden":false,"merged":[[50,0,50,1],[52,0,52,9],[53,0,54,9],[41,0,41,9],[42,0,43,9],[46,0,46,1],[46,2,46,9],[48,0,48,1],[49,0,49,1],[39,0,39,3],[39,4,39,5],[39,7,39,8],[40,0,40,3],[40,4,40,5],[40,7,40,8],[37,0,37,3],[37,4,37,5],[37,7,37,8],[38,0,38,3],[38,4,38,5],[38,7,38,8],[34,0,34,3],[34,7,34,8],[35,0,35,3],[35,4,35,5],[35,7,35,8],[36,0,36,3],[36,4,36,5],[36,7,36,8],[26,0,26,3],[26,4,26,5],[26,6,26,7],[26,8,26,9],[28,0,28,9],[29,0,31,9],[24,0,24,1],[24,2,24,3],[24,4,24,5],[24,6,24,7],[24,8,24,9],[25,0,25,3],[25,4,25,5],[25,6,25,7],[25,8,25,9],[19,0,19,1],[19,2,19,3],[19,4,19,5],[19,6,19,7],[19,8,19,9],[20,0,20,1],[20,2,20,3],[20,4,20,5],[20,6,20,7],[20,8,20,9],[17,0,17,1],[17,2,17,3],[17,4,17,5],[17,6,17,7],[17,8,17,9],[18,0,18,1],[18,2,18,3],[18,4,18,5],[18,6,18,7],[18,8,18,9],[15,0,15,1],[15,2,15,3],[15,4,15,5],[15,6,15,7],[15,8,15,9],[16,0,16,9],[13,0,13,1],[13,2,13,3],[13,4,13,5],[13,6,13,7],[13,8,13,9],[14,0,14,3],[14,4,14,5],[14,6,14,7],[14,8,14,9],[11,0,11,1],[11,2,11,3],[11,4,11,5],[11,6,11,7],[11,8,11,9],[12,0,12,1],[12,2,12,3],[12,4,12,5],[12,6,12,7],[12,8,12,9],[9,0,9,9],[10,0,10,1],[10,2,10,3],[10,4,10,5],[10,6,10,7],[10,8,10,9],[2,0,2,4],[2,6,2,8],[3,1,3,4],[5,3,5,4],[5,6,5,7],[8,0,8,1],[8,2,8,3],[8,4,8,5],[8,6,8,7],[8,8,8,9],[21,6,21,7],[22,6,22,7],[23,6,23,7],[21,8,21,9],[22,8,22,9],[23,8,23,9],[21,0,21,1],[22,0,22,1],[23,0,23,1],[21,2,21,3],[22,2,22,3],[23,2,23,3],[21,4,21,5],[22,4,22,5],[23,4,23,5]]}
[{"$f":"+'Cover Page'!C39","v":2024}," Annual Reporting Performance Form 1"]
[]
[{"$f":"+'Cover Page'!B31","v":"Permit EPR/RP3004MA v005"},null,null,null,null,"Operator: ",{"$f":"+'Cover Page'!B37","v":"Encyclis Ltd"}]
["Facility:",{"$f":"+'Cover Page'!B33:I33","v":"Newhurst Energy Recovery Facility"},null,null,null,"Form:","Performance 1"]
[]
["Reporting  Period from: ",null,null,"1st January 2024",null,"to:","31st December 2024"]
[]
[{"$f":"+A1","v":2024},"Annual Reporting of Waste Disposal and Recovery"]
["Waste Description",null,"Disposal Route(s)",null,"Disposal Tonnes",null,"Recovery Tonnes",null,"% / tonne of waste incinerated"]
["1) Hazardous Wastes"]
["APC Residues",null,"D01, R05",null,402.58,null,8619.56,null,{"$f":"IF((E11+G11)>0,(E11+G11)/'Operational Data'!$G$21, \"-\")","v":2.5718595835487922E-2}]
["IBA",null,0,null,0,null,0,null,{"$f":"IF((E12+G12)>0,(E12+G12)/'Operational Data'!$G$21, \"-\")","v":"-"}]
["130508 mixtures of wastes from grit chambers and oil/water separators (seperator annual service)",null,"R09",null,0,null,12.03,null,{"$f":"IF((E13+G13)>0,(E13+G13)/'Operational Data'!$G$21, \"-\")","v":3.4292829406429038E-5}]
["161003 aqueous concentrates containing hazardous substances",null,"R13",null,0,null,28,null,{"$f":"IF((E14+G14)>0,(E14+G14)/'Operational Data'!$G$21, \"-\")","v":7.9817059300084223E-5}]
["Total Hazardous Waste",null,null,null,{"$f":"SUM(E11:F14)","v":402.58},null,{"$f":"SUM(G11:H14)","v":8659.59},null,{"$f":"IF((E15+G15)>0,(E15+G15)/'Operational Data'!$G$21, \"-\")","v":2.5832705724194435E-2}]
[]
["2) Non-Hazardous Wastes"]
["IBA",null,"R05",null,null,null,{"$f":"'Operational Data'!G38","v":67498.240000000005},null,{"$f":"IF((E18+G18)>0,(E18+G18)/'Operational Data'!$G$21, \"-\")","v":0.19241110802611847}]
["Ferrous Metal",null,"R04",null,null,null,{"$f":"'Operational Data'!G39","v":162.6},null,{"$f":"IF((E19+G19)>0,(E19+G19)/'Operational Data'!$G$21, \"-\")","v":4.6350906579263189E-4}]
["Process Water",null,"D08, R13",null,90.5,null,65.08,null,{"$f":"IF((E20+G20)>0,(E20+G20)/'Operational Data'!$G$21, \"-\")","v":4.4349778878239649E-4}]
["200301 - Mixed Municipal",null,"R03",null,null,null,{"$f":"'Operational Data'!G40","v":10.76},null,{"$f":"IF((E21+G21)>0,(E21+G21)/'Operational Data'!$G$21, \"-\")","v":3.067255564531808E-5}]
["170201 - Wood",null,"R03",null,null,null,{"$f":"'Operational Data'!G41","v":2.3199999999999998},null,{"$f":"IF((E22+G22)>0,(E22+G22)/'Operational Data'!$G$21, \"-\")","v":6.6134134848641204E-6}]
["150106 - Mixed Packaging",null,"R03",null,null,null,{"$f":"'Operational Data'!G42","v":2.66},null,{"$f":"IF((E23+G23)>0,(E23+G23)/'Operational Data'!$G$21, \"-\")","v":7.5826206335080011E-6}]
["200304 Septic tank sludge",null,"D08",null,{"$f":"'Operational Data'!G43","v":673.55},null,{"$f":"'Operational Data'!G48","v":0},null,{"$f":"IF((E24+G24)>0,(E24+G24)/'Operational Data'!$G$21, \"-\")","v":1.920027867556133E-3}]
["170504 soil and stones  (from onsite construction project Q4).",null,"D01",null,{"$f":"'Operational Data'!G47","v":260},null,{"$f":"'Operational Data'!G49","v":0},null,{"$f":"IF((E25+G25)>0,(E25+G25)/'Operational Data'!$G$21, \"-\")","v":7.4115840778649631E-4}]
["Total Non-Hazardous Waste",null,null,null,{"$f":"SUM(E18:F25)","v":1024.05},null,{"$f":"SUM(G18:H25)","v":67741.660000000018},null,{"$f":"IF((E26+G26)>0,(E26+G26)/'Operational Data'!$G$21, \"-\")","v":0.19602416974579986}]
["TOTAL WASTE",null,null,null,{"$f":"+E26+E15","v":1426.6299999999999},null,{"$f":"+G26+G15","v":76401.250000000015},null,{"$f":"IF((E27+G27)>0,(E27+G27)/'Operational Data'!$G$21, \"-\")","v":0.22185687546999427}]
[]
["Operator’s comments :"]
["All IBA is recycled into IBAA. IBA has remained non-hazardous throughout 2024.\nAPCr goes through the OCO Accelerated Carbonation Technology where the APCr waste is reacted with Carbon Dioxide in a carbon capture process (CCU) to produce a calcium carbonate based aggregate. A small amount was diverted to landfill  due to OCO operational issues."]
[]
[]
[]
[{"$f":"+A1","v":2024},"Annual Reporting of Water and Other Raw Material Usage"]
["Raw Material",null,null,null,"Usage",null,"Unit","Specific Usage",null,"Unit"]
["Mains Water",null,null,null,{"$f":"+'Operational Data'!G52/1000","v":36926.9},null,"m3",{"$f":"IF(E36>0,E36/'Operational Data'!$G$21,\"-\")","v":0.10526416310958144},null,"m3/te"]
["Total Water",null,null,null,{"$f":"+'Operational Data'!G53+'Operational Data'!G52/1000","v":36926.9},null,"m3",{"$f":"IF(E37>0,E37/'Operational Data'!$G$21,\"-\")","v":0.10526416310958144},null,"m3/te"]
["Urea / Ammonia",null,null,null,{"$f":"+'Operational Data'!G54","v":66569.3},null,"kg",{"$f":"IF(E38>0,E38/'Operational Data'!$G$21,\"-\")","v":0.18976306305946775},null,"kg/te"]
["Activated Carbon",null,null,null,{"$f":"+'Operational Data'!G56","v":88900},null,"kg",{"$f":"IF(E39>0,E39/'Operational Data'!$G$21,\"-\")","v":0.25341916327776737},null,"kg/te"]
["Lime / hydrated lime / Sodium Bicarb.",null,null,null,{"$f":"+'Operational Data'!G57","v":3006100},null,"kg",{"$f":"IF(E40>0,E40/'Operational Data'!$G$21,\"-\")","v":8.5692164986422554},null,"kg/te"]
[]
["Operator’s comments :"]
["Planned 14 day maintenance outage period in April 2024 and 7 day period in September 2024.\nAmmonia use decreased whilst maintaining compliance after fine tuning of the SNCR system even with lower permit limits from December 2023. \nLime usage increased due to lower permit limits which came into effect December 2023."]
[]
[]
[{"$f":"+A34","v":2024},"Annual Reporting of other performance indicators "]
["Parameter",null,"Results by Line"]
[null,null,"A1","A2","A3","A4","A5",null,"Turbine 1","Turbine 2"]
["Operating hours for the year, hours",null,{"$f":"'Operational Data'!G63","v":8131.95},"N/A","N/A","N/A","N/A","N/A",{"$f":"'Operational Data'!G69","v":7946.3000000000011},"N/A"]
["Number of periods of abnormal operation, qty.",null,0,"N/A","N/A","N/A","N/A","N/A","N/A","N/A"]
["Cumulative hours of abnormal operation for this year, hours",null,0,"N/A","N/A","N/A","N/A","N/A","N/A","N/A"]
[]
["Operator’s comments :"]
["No abnormal operations or permit non-compliances."]
[]
[]
["Signed: ",null,null,null,null,null,"Date:","2025-01-17"]

{"sheet":"Energy Form 1","index":6,"n_rows":29,"n_cols":8,"rows_kept":29,"cut":false,"hidden":false,"merged":[[15,0,15,2],[15,3,15,4],[15,6,15,8],[17,0,17,8],[18,0,24,8],[13,0,13,2],[13,3,13,4],[13,6,13,8],[14,0,14,2],[14,3,14,4],[14,6,14,8],[11,0,11,2],[11,3,11,4],[11,6,11,8],[12,0,12,2],[12,3,12,4],[12,6,12,8],[9,0,9,2],[9,3,9,4],[9,6,9,8],[10,0,10,2],[10,3,10,4],[10,6,10,8],[2,6,2,8],[4,1,4,4],[6,3,6,4],[6,6,6,7],[8,0,8,2],[8,3,8,4],[8,6,8,8]]}
[{"$f":"+'Cover Page'!C39","v":2024}," Annual Reporting of Energy Usage/Export"]
[]
[{"$f":"+'Cover Page'!B31","v":"Permit EPR/RP3004MA v005"},null,null,null,null,"Operator: ",{"$f":"+'Cover Page'!B37","v":"Encyclis Ltd"}]
[]
["Facility:",{"$f":"+'Cover Page'!B33:I33","v":"Newhurst Energy Recovery Facility"},null,null,null,"Form:","Energy 1"]
[]
["Reporting  Period from: ",null,null,{"$f":"+'Perf. Form 1'!D6:E6","v":"1st January 2024"},null,"to:",{"$f":"+'Perf. Form 1'!G6:H6","v":"31st December 2024"}]
[]
["Energy Source",null,null,"Energy Usage",null,"Unit","Specific Usage (KWh/tonne incinerated"]
["Electricity Produced",null,null,{"$f":"'Operational Data'!G27","v":333970.80000000005},null,"MWh",{"$f":"+'Operational Data'!H27","v":952.02025528916329}]
["Electricity Imported   ",null,null,{"$f":"+'Operational Data'!G30","v":1101.5},null,"MWh",{"$f":"+'Operational Data'!H30","v":3.1399461006800986}]
["Electricity Exported",null,null,310163,null,"MWh",{"$f":"+'Operational Data'!H28","v":882.50643810101531}]
["Gas Oil (Diesel)",null,null,{"$f":"'Operational Data'!G58*0.85","v":165154.15},null,"kg"]
["Steam/hot water exported",null,null,{"$f":"+'Operational Data'!G33","v":0},null,"GWh",{"$f":"+'Operational Data'!H33","v":"-"}]
["HVO (Hydrotreated Vegetable Oil) (replacing Gas Oil as of September 2024)",null,null,{"$f":"'Operational Data'!G60*0.772","v":96413.304399999994},null,"kg"]
[]
[]
["Operator’s comments :"]
["Gas oil tonnes calculated from litres using a diesel density of 0.85 (taken from MSDS).\nHVO tonnes calculated from litres using a density of 0.772 (taken from MSDS)."]
[]
[]
[]
[]
[]
[]
[]
[]
[]
["Signed: ",null,null,null,null,null,"Date:","2025-01-17"]

{"sheet":"Permit Compliance","index":7,"n_rows":36,"n_cols":12,"rows_kept":36,"cut":false,"hidden":false,"merged":[[35,0,35,8],[18,0,18,8],[31,1,31,3],[31,4,31,6],[31,7,31,8],[33,1,33,3],[33,4,33,6],[33,7,33,8],[24,0,24,8],[20,7,20,8],[20,1,20,2],[20,3,20,5],[22,3,22,5],[23,3,23,5],[22,1,22,2],[34,1,34,3],[8,11,21,11],[26,0,26,10],[19,0,19,10],[32,1,32,3],[32,4,32,6],[32,7,32,9],[27,1,27,3],[27,4,27,6],[27,7,27,9],[28,1,28,3],[28,4,28,6],[28,7,28,9],[23,1,23,2],[14,0,14,1],[14,2,14,4],[14,5,14,8],[34,4,34,6],[34,7,34,9],[29,1,29,3],[29,4,29,6],[29,7,29,9],[30,1,30,3],[30,4,30,6],[30,7,30,9],[15,0,15,1],[17,2,17,4],[17,5,17,8],[15,2,15,4],[15,5,15,8],[17,0,17,1],[16,0,16,1],[16,2,16,4],[16,5,16,8],[7,0,7,1],[7,2,7,8],[8,0,8,1],[8,2,8,4],[8,5,8,8],[9,0,9,1],[9,2,9,4],[9,5,9,8],[10,0,10,1],[10,2,10,4],[10,5,10,8],[13,0,13,1],[13,2,13,4],[13,5,13,8],[11,0,11,1],[11,2,11,4],[11,5,11,8],[12,0,12,1],[12,2,12,4],[12,5,12,8]]}
[{"$f":"+'Cover Page'!$B$29","v":"Annual Performance Report 2024"},null,null,null,{"$f":"+'Cover Page'!$B$33","v":"Newhurst Energy Recovery Facility"}]
[]
["Summary of Permit Compliance"]
[]
["Compliance with permit limits for continuously monitored pollutants"]
[]
["The plant met its emission limits as shown in the table below:"]
["Substance",null,"Percentage time compliant during operationNote 1",null,null,null,null,null,null,null,null,"Notes:"]
[null,null,"Half-hourly limit",null,null,"Daily limit",null,null,null,null,null,"Note 1: Please report to 2 decimal places, i.e. xx.xx%\n\nNote 2: Please enter into this table any permit non-compliances that the EA has given a CCS score for. Please also enter any other non-compliances which you have notified to the EA (e.g. ELV exceedances) but which have not yet been assessed by the EA. There is no need to enter any notifications which were subsequently assessed by the EA not to be permit breaches.  \n\nNote 3: Please enter information here (rather than just referencing the notifications that were sent to the EA) including where relevant the incineration line reference, pollutant and value of the measured result for any ELV exceedances.   \n\n"]
["Particulates",null,1,null,null,1]
["Oxides of nitrogen",null,1,null,null,1]
["Sulphur dioxide",null,1,null,null,1]
["Carbon monoxide",null," 100.00% 95% of 10-min averages",null,null,1]
["Total organic carbon",null,"100%*",null,null,1]
["Hydrogen chloride",null,1,null,null,1]
["Hydrogen fluoride",null,"N/A - Periodic monitoring",null,null,"N/A - Periodic monitoring"]
["Nitrous Oxide",null,1,null,null,1]
["Ammonia",null,1,null,null,1]
["NOTE * the data suggests TOC on 18th November had one half hour at 20.1 however this was not an emission. During the routine, planned, 6 monthly service of the CEMS a filter is replaced which is located at the back of the sample probes for the duty & standby gas analysers. An issue with the filter indicated an increased TOC level, the 'elevated' time period on the duty was 12:57 - 13:16. The CO report and other data showed that there were no combustion issues at the time and that the indicated elevated TOC was due to the filter not due to plant process & waste combustion. Filters have been returned to manufacturer for investigation.\nIssue duly reported in writing to site EA officers 19th November 2024."]
["Summary of non-compliances under the permit Note 2"]
["Date","Summary of non-compliance Note 3",null,"Reason ",null,null,"Measures taken to prevent reoccurrence","CCS score if applicable*"]
[null,null,null,null,null,null,null,"Impact","Root cause"]
[null,"None"]
[]
["*If the Environment Agency (EA) has given a Compliance Classification Scheme (CCS) score due to a permit non-compliance it should be entered here (CCS4 = No impact; CCS3 = Minor impact; CCS2 = Significant impact; CCS1 = Major impact). If the EA has not yet assessed a non-compliance which you have notified to them, these columns should be left blank. Enter N/A if no score was given for the root cause.  "]
[]
["Summary of any complaints received and actions to taken to resolve them."]
["Date","Summary of complaint [including Line/Reference]",null,null,"Reason (including whether substantiated by the operator or the EA)",null,null,"Measures taken to prevent reoccurrence"]
["2024-01-13","A 'smell' presumably from the Shepshed incinerator. No further detail given.  \nDirect communication to site.",null,null,"Location approximately 2 miles NE of  site. No issues on site, no odours recorded in on site monitoring, all emissions well within ELV. Wind v light SSW - WSW.\nNot substantiated - not related to site",null,null,"N/A"]
["2024-02-18","Very strong odour getting into the house, No further details given. \nNIRS 02232788 ",null,null,"Location ENE of site, wind from SW. No issues on site, no odours recorded in on site monitoring, all emissions well within ELV.\nNot substantiated - not related to site",null,null,"N/A"]
["2024-04-01","Report of strong burning smell 1st April 2024 @ 14.55 hours\nAlso reported there have been several incidents in the past 10 days (which complainant stated they had not reported). \nReported via local council.",null,null,"There has been no record of any smoke, burning or similar smells on site looking back as far as 20th March.  Plant running steadily throughout the period with emission levels well under the ELV within the Environmental Permit. \nOne of the independantly completed odour surveys was completed on 22nd March recorded a smoke burning odour from a residential area at 09:49 on 22nd March but nothing from the plant.\nLocation of complaint ENE of site, wind blowing from S to SE.\nNot substantiated - not related to site\n",null,null,"N/A"]
["2024-04-28","Smell of pollution in front of property, somewhat similar to burning plastic. Reoccurring the last 4 evenings. Wanted to confirm the incinerator is filtered. \nComplaint via our 24hr telephone contact service.",null,null,"Complainant contacted, confirmed details of the on site filtration. \nThe plant was offline for the annual maintenance outage at this time.\nNot substantiated - not related to site",null,null,"The complainant rang back a few days later to say they had found the source of the smell somewhere very local to where they lived."]
["2024-06-12","Lives by the Incinerator iand there has been a weird nasty smell all day.\nComplaint via our 24hr telephone contact service.",null,null,"Complainant contacted for further details. Reported an acrid plastic like smell, not wood or coal burning, had smelt it previously in Nov 2023. Plant running steadily throughout the period with emission levels well under the ELV within the Environmental Permit.\nThe weather was winds of less than 5mph, wind variable around SW. \nThe location of the complainant is ESE of site. \nNot substantiated - not related to site",null,null,"N/A"]
["2024-10-25","Newhurst quarry has a incinerator which the caller states might be responsible for a substance that coats external surfaces, is described as an oily/greasy film.\nNIRS  02316927",null,null,"It was not reported which Leicester Road as there is one in Shepshed and one in Loughborough. CEMS data for dust for the month of October supplied to EA, as reportedly happening over a few weeks. dust emissions have not exceeded 0.1mg/Nm3 (half hourly ELV 30mg/Nm3, daily ELV 5mg/Nm3).\nNot substantiated - not related to site",null,null,"The area of Leicester Rd in Shepshed has been looked at further as this was believed to be the source. A large area of allotments is located next to Leicester Rd Shepshed, activities there may be related to burning odours and greasy, dusty deposits."]
[" 25/11/2024","Complainant reported they were driving from Loughborough on the A512 towards Shepshed. As they were going over the motorway, the wind was almost not present and the plume of Newhurst ERF  had sank to the floor, reported it smelled of burning plastic.\nNIRS 02327261",null,null,"Plant running steadily with emission levels well under the ELV within the Environmental Permit.\nDaily odour checks were completed on site earlier that afternoon and detected no odour issues.\nOn CCTV the plume is just visible but can be seen to be heading upwards from the top of the 96m high stack.\nThe stack was approx 0.2 miles SSW of the complainant location with the wind blowing from the SSE.\nNot substantiated - not related to site",null,null,"N/A"]
["All complaints are thoroughly investigated using local weather station data, CEMS data, onsite daily odour monitoring, operational data and where relevant CCTV and offsite odour monitoring. We also visit the location of the complaint if we recieve details at the time the odour is being noticed.\nResponse are given direct to the complainant where they have contacted site directly or supplied contact details. Response are sent to the EA or local council where the complaints are received via those bodies."]

{"sheet":"Improvements","index":8,"n_rows":39,"n_cols":5,"rows_kept":39,"cut":false,"hidden":false,"merged":[[37,0,37,8],[38,0,47,8],[4,0,4,8],[5,0,13,8],[15,0,15,8],[16,0,24,8],[26,0,26,8],[27,0,35,8]]}
[{"$f":"+'Cover Page'!$B$29","v":"Annual Performance Report 2024"},null,null,null,{"$f":"+'Cover Page'!$B$33","v":"Newhurst Energy Recovery Facility"}]
[]
["Summary of Plant Improvements"]
[]
["Summary of any efficiency improvements that have been completed within the year."]
["Some fine tuning of the Ammonia NOx control system has been undertaken by Kanadevia Inova and Encyclis to minimise ammonia usage whilst maintaining permit compliance.  \n\nFrom the restart after the outage in September (17th September 2024) all equipment on site which was previously operated on diesel now runs on HVO (Hydrotreated Vegetable Oil) with the exception of the fire pump. This includes the main burners for start-up / shutdown, emergency diesel generator and all mobile plant. This is a 12 month trial in agreement with the Agency and in participation with the OEMs of the furnace burners, EDG and mobile plant suppliers. \nHVO contains extremely low levels of sulphur (0.0005% Sulphur) and produces lower levels of NOx, CO and CO2."]
[]
[]
[]
[]
[]
[]
[]
[]
[]
["Summary of any permit improvement conditions that have been completed within the year and the resulting environmental benefits."]
["The report for Improvement Improvement Condition 3, the Chromium VI measurement and dispersion modelling was submitted in May 2024. The report confirms:\n1) Emissions from the operation of the Encyclis site will not cause a breach of the Cr VI EAL;\n2) The impacts of the Encyclis site are assessed as not significant; \n3) There is no risk of exceeding the Cr VI EAL over a long-term basis.\n4) The current stack height is deemed appropriate based upon the stack emissions testing data.\n\n"]
[]
[]
[]
[]
[]
[]
[]
[]
[]
["Summary of any changes to the plant or operating techniques which required a variation to the permit and a summary of the resulting environmental impact."]
["None"]
[]
[]
[]
[]
[]
[]
[]
[]
[]
["Summary of any other improvements made to the plant or planned to be made and a summary of the resulting environmental benefits."]
["None"]

{"sheet":"Public Liasion","index":9,"n_rows":34,"n_cols":5,"rows_kept":34,"cut":false,"hidden":false,"merged":[[14,2,14,8],[15,2,15,8],[16,2,16,8],[17,2,17,8],[18,2,18,8],[9,2,9,8],[10,2,10,8],[11,2,11,8],[12,2,12,8],[13,2,13,8],[12,0,12,1],[13,0,13,1],[14,0,14,1],[15,0,15,1],[16,0,16,1],[28,0,29,1],[28,2,29,8],[30,0,31,1],[30,2,31,8],[33,0,33,8],[22,0,23,1],[22,2,23,8],[24,0,25,1],[24,2,25,8],[26,0,27,1],[26,2,27,8],[21,0,21,1],[21,2,21,8],[5,0,5,1],[5,2,5,8],[6,0,6,1],[6,2,6,8],[7,0,7,1],[7,2,7,8],[8,0,8,1],[8,2,8,8],[20,0,20,8],[9,0,9,1],[10,0,10,1],[11,0,11,1],[17,0,17,1],[18,0,18,1]]}
[{"$f":"+'Cover Page'!$B$29","v":"Annual Performance Report 2024"},null,null,null,{"$f":"+'Cover Page'!$B$33","v":"Newhurst Energy Recovery Facility"}]
[]
["Details of Public & Stakeholder Liaison"]
[]
["Summary of events held during the reporting year."]
["Date",null,"Description"]
["Quarterly\n(15/1/2024, 25/3/2024, 8/7/2024)",null,"Local Liaison Committee Meeting. Moved to 6 monthly with agreement of the LLC in July 2024. Next meeting Jan 2025"]
["Ongoing",null,"“Frontline” Specialist Call Answering & Handling services providing 24/7 call line for public communications or questions to site."]
["2024-06-08",null,"Families Day - Open Day for staff families - approx 180 attendees"]
["2024-02-08",null,"Biffa - approx 25 attendees"]
["2024-02-21",null,"Loughborough University - approx 20 attendees"]
["2024-03-06",null,"Loughborough University - approx 30 attendees"]
["2024-06-07",null,"Pre-Win Conference - approx 50 attendees"]
["2024-06-25",null,"Biffa - approx 8 attendees"]
["2024-08-20",null,"Shepshed Council - approx 10 attendees"]
["2024-10-09",null,"Biffa - approx 5 attendees"]
["2024-10-24",null,"KVI - Management and potential suppliers & customers (KVI is site OEM)"]
["2024-11-28",null,"Biffa  - approx 10 attendees"]
["2024-12-17",null,"Biffa - approx 10 attendees"]
[]
["List of events planned for next year"]
["Date",null,"Description"]
["Six monthly",null,"Local Liaison Committee Meeting"]
[]
["Ongoing",null,"“Frontline” Specialist Call Answering & Handling services providing 24/7 call line for public communications or questions to site."]
[]
[]
[]
[]
[]
[]
[]
[]
["If you wish to be involved in the public liaison programme, please contact _________________"]

{"sheet":"CO2 N2O","index":10,"n_rows":26,"n_cols":6,"rows_kept":26,"cut":false,"hidden":false,"merged":[[22,2,22,3],[25,1,25,3],[16,2,16,3],[4,0,4,3],[9,0,9,3],[17,0,17,3],[13,0,13,3],[12,0,12,1],[8,2,8,3],[11,2,11,3],[19,2,19,3]]}
[{"$f":"+'Cover Page'!$B$29","v":"Annual Performance Report 2024"},null,{"$f":"+'Cover Page'!$B$33","v":"Newhurst Energy Recovery Facility"}]
[]
["Carbon dioxide emissions and biogenic content of waste inputs",null,null,null,null,"Notes:"]
[]
["Carbon dioxide emissions (all types of plant)"]
[null,"Annual mass of carbon dioxide released","tonnes ",255137.07]
[null,"Annual mass of carbon dioxide released per tonne of waste burned","t CO2 / t waste ",{"$f":"D6/'Operational Data'!G21","v":0.72729609449427635}]
[null,"Annual mass of carbon dioxide released per MWh of energy exported","t CO2 / MWh export ",{"$f":"D6/'Operational Data'!G28","v":0.82412553959297807}]
[null,"Description of how annual carbon dioxide mass emission has been calculated. \nSee Note 1","Direct measurement from CEMS with QAL2 on both CO2 and flow",null,null,"Note 1: All permits require operators to continuously monitor CO2 to EN14181 and flow to BS EN 16911-2 (unless otherwise agreed in writing). Operators must therefore use the results from these instruments to calculate their annual CO2 emissions. Where an operator does not have a flow meter calibrated to BS EN 16911-2, the averaged flow measurement from that year's periodic monitoring can be used instead. If the plant does not have calibrated CO2 CEMS, a suitably justified emissions factor can be used."]
["Nitrous oxide emissions (only plants which use ammonia or urea to abate NOx emissions)"]
[null,"Annual mass emissions of nitrous oxide","tonnes N2O",0.26600000000000001]
[null,"Description of how annual nitrous oxide mass emission has been calculated\nSee Note 2","Direct measurement from CEMS with QAL2 on both N2O and flow",null,null,"Note 2: All permits require operators to continuously monitor N2O to EN14181 and flow to BS EN 16911-2, unless otherwise agreed in writing. Operators must therefore use the results from these instruments to calculate their annual N2O emissions. Where an operator does not have a flow meter calibrated to BS EN 16911-2, the averaged flow measurement from periodic monitoring can be used instead. If the plant does not have calibrated N2O CEMS, data from periodic monitoring or a suitably justified emissions factor can be used instead."]
["Total annual carbon dioxide + nitrous oxide emissions. \nSee Note 3. ",null,"tonnes CO2e",{"$f":"D11*265","v":70.490000000000009},null,"Note 3: Total annual carbon dioxide and nitrous oxide emissions reported as carbon dioxide equivalent where 1 tonne nitrous oxide is equivalent to 265 tonnes carbon dioxide."]
["Biogenic CO2 emissions (See Note 4)",null,null,null,null,"Note 4: Only plants combusting residual municipal waste, refuse derived fuel or solid recovered fuel need complete this section. "]
[null,"Percentage of total carbon dioxide emissions arising from biogenic waste","%",0.52]
[null,"No. of measurements undertaken","Number",1]
[null,"Description of how percentage biogenic carbon dioxide emissions have been measured or calculated.\nSee Note 5","Extractive stack sample taken by Element during H2 sampling campaign and analysed by Beta Analytic Inc. Results are accredited to ISO/IEC 17025:2017 PJLA #59423 standards",null,null,"Note 5: The results from C14 sampling should be used if this is carried out at the plant (either via an installed sampler or from spot samples).  \nOtherwise, as an approximation (and in lieu of any more accurate metrics which may be developed in future), the measured or estimated biogenic fraction by net calorific value (see Note 6) can be assumed to be the same as the biogenic CO2 fraction of the total CO2 emissions from the plant. "]
["Biogenic fraction of waste feedstock (See Note 4)"]
[null,"Yearly average biogenic percentage of the waste by net calorific value (NCV)","%",0.62109999999999999]
[null,"Description of how biogenic percentage (by NCV) has been calculated or estimated. \nSee Note 6","Quarterly waste sampling. Samples taken on 4 consecutive days for each sampling campaign (4 x 4 = 16 samples total in the year)",null,null,"Note 6: If C14 sampling is carried out at the plant, the methodology set out in the embedded document entitled \"Renewable Energy Association Energy Content of Fuels - Description of Method\" embedded below can be used to calculate the biogenic percentage by net calorific value. Otherwise, data from waste sampling or BIOMA software can be used; or if none of these are available, an estimated figure with justification or a figure assumed on the basis of up-to-date industry data can be used. "]
[null,"Yearly average biogenic percentage of the waste by mass","%",0.53149999999999997]
[null,"If waste sampling undertaken, no. of samples used to ascertain average biogenic percentages above","Number","16\n4 samples each of the four quarters"]
[null,"Description of how biogenic percentage (by mass) has been calculated or estimated. \nSee Note 7","Quarterly waste sampling. Samples taken on 4 consecutive days for each sampling campaign (4 x 4 = 16 samples total in the year)",null,null,"Note 7: Where available, data from waste sampling should be used; otherwise, an estimated figure with justification can be used, or a figure assumed on the basis of up-to-date industry data. "]
[]
[null,"Comments:"]
[null,"NOTE N2O emission for 2024 was 266kg (0.266 tonnes).\n% Biomass by CV completed following ISO 17025:2017 UKAS lab 8738\n% Biomass by mass completed following ISO 17025:2017 UKAS lab 1765"]

{"sheet":"Residue Quality ","index":11,"n_rows":32,"n_cols":6,"rows_kept":32,"cut":false,"hidden":false,"merged":[[31,0,33,6],[27,3,27,4],[30,0,30,6],[22,0,23,1],[24,0,24,1],[25,0,25,1],[26,0,26,1],[27,0,27,1],[24,3,24,4],[25,3,25,4],[24,5,24,6],[25,5,25,6],[26,5,26,6],[27,5,27,6],[28,0,28,6],[26,3,26,4],[22,2,23,2],[23,3,23,4],[23,5,23,6],[22,3,22,6],[21,0,21,6],[5,0,6,6],[7,0,8,6],[15,0,16,1],[15,2,16,6],[9,0,10,6],[11,0,11,6],[17,0,18,1],[17,2,18,6],[13,0,13,6],[14,0,14,1],[14,2,14,6]]}
[{"$f":"+'Cover Page'!$B$29","v":"Annual Performance Report 2024"},null,null,null,{"$f":"+'Cover Page'!$B$33","v":"Newhurst Energy Recovery Facility"}]
[]
["Residue Quality Monitoring Requirements"]
[]
["Summary of monitoring undertaken and compliance"]
["The site has continued with the usual two samples per month IBA as per ESA protocol. As we were in first year of operation up to June 2024 one of these samples each month has been sent for full permit compliance analysis, the other for ESA core hazard assessment.\nFrom July 2024 as per site permit, and with agreement of the Agency, we continued with two samples per month for ESA hazard assessment but one randomly selected per quarter was sent for full permit compliance analysis, the other five in the quarter for ESA core hazard assessment.\nAll IBA has been non-hazardous and below the permit compliance limit of 3% TOC."]
[]
["APCr has been sampled and analysed once per month until June 2024, then once per quarter from July 2024 as per site permit, and with agreement of the Agency  and analysis completed and reported as required by the permit."]
[]
["A full annual analysis including soluble fractions was completed on the October 1 sample in accordance with the protocol and to meet permit requirement table S3.4 for the move of IBA disposal from Blue Phoenix Sheffield to Encyclis/Day Aggregates at Wellingborough."]
[]
["All residue analysis was carried out for Encyclis by WRc."]
[]
["Commentary on any specific events"]
["Date & Event",null,"Description"]
[null,null,"None"]
[]
[]
[]
[]
[]
["Residue Quality Monitoring Results"]
["Parameter (unit) ",null,"Limit*","Normal Operation "]
[null,null,null,"Bottom ash  ",null,"APC Residues"]
["Loss on Ignition (average %)",null,"<5%","TOC <3%"]
["Total Organic Carbon (average %)",null,"<3%",0.9]
["No. of Assessments Undertaken",null,"---",8,null,8]
["No. of Hazardous Results",null,"---",0]
["* The permit will specify a limit of either 5% loss on ignition or 3% total organic carbon. If both are measured anyway, please enter the results here, even where the limit does not apply. "]
[]
["Comments :"]
["None"]

{"sheet":"Water","index":12,"n_rows":23,"n_cols":9,"rows_kept":23,"cut":false,"hidden":false,"merged":[[27,0,27,2],[27,3,27,4],[24,0,24,2],[24,3,24,4],[25,0,25,2],[25,3,25,4],[26,0,26,2],[26,3,26,4],[21,0,21,2],[21,3,21,4],[22,0,22,2],[22,3,22,4],[23,0,23,2],[23,3,23,4],[19,0,19,8],[20,0,20,2],[20,3,20,4],[14,0,15,1],[14,2,15,8],[16,0,17,1],[16,2,17,8],[5,0,6,8],[7,0,8,8],[9,0,10,8],[12,0,12,8],[13,0,13,1],[13,2,13,8]]}
[{"$f":"+'Cover Page'!$B$29","v":"Annual Performance Report 2024"},null,null,null,{"$f":"+'Cover Page'!$B$33","v":"Newhurst Energy Recovery Facility"}]
[]
["Emissions to Water"]
[]
["Summary of monitoring undertaken and compliance"]
["N/A - no emission to sewer"]
[]
[]
[]
[]
[]
[]
["Commentary on any specific events"]
["Date & Event",null,"Description"]
[]
[]
[]
[]
[]
["Emissions to Water / Sewer"]
["Parameter",null,null,"Monitoring Frequency",null,"Limit","Target","Max.","Average"]
[]
["No Analysis - no emisison to sewer",null,null,"N/A"]

{"sheet":"Air (periodic) Q1","index":13,"n_rows":41,"n_cols":11,"rows_kept":41,"cut":false,"hidden":false,"merged":[[39,0,39,9],[40,0,41,9],[36,0,36,1],[36,3,36,4],[37,0,37,1],[37,3,37,4],[38,0,38,1],[38,3,38,4],[33,0,33,1],[33,3,33,4],[34,0,34,1],[34,3,34,4],[35,0,35,1],[35,3,35,4],[30,0,30,1],[30,3,30,4],[31,0,31,1],[31,3,31,4],[32,0,32,1],[32,3,32,4],[27,0,27,1],[27,3,27,4],[28,0,28,1],[28,3,28,4],[29,0,29,1],[29,3,29,4],[24,0,24,1],[24,3,24,4],[25,0,25,1],[25,3,25,4],[26,0,26,1],[26,3,26,4],[20,0,20,1],[20,3,20,4],[21,0,21,1],[21,3,21,4],[23,0,23,1],[23,3,23,4],[22,0,22,1],[22,3,22,4],[17,0,17,1],[17,3,17,4],[18,0,18,1],[18,3,18,4],[19,0,19,1],[19,3,19,4],[15,0,15,1],[15,3,15,4],[15,10,16,10],[15,11,16,11],[15,12,16,12],[16,0,16,1],[16,3,16,4],[12,0,12,1],[12,3,12,4],[13,0,13,1],[13,3,13,4],[13,10,14,12],[14,0,14,1],[14,3,14,4],[5,0,6,9],[5,10,8,13],[8,0,8,9],[9,0,10,1],[9,2,10,2],[9,3,10,4],[9,5,9,9],[9,10,11,13],[11,0,11,1],[11,3,11,4]]}
[{"$f":"+'Cover Page'!$B$29","v":"Annual Performance Report 2024"},null,null,null,{"$f":"+'Cover Page'!$B$33","v":"Newhurst Energy Recovery Facility"}]
[]
["Emissions to Air (periodically monitored)"]
[]
["Summary of monitoring undertaken, standards used and compliance",null,null,null,null,null,null,null,null,null,"Notes:"]
["All analysis below completed by permit specified method. Where triplicate runs of the measurement is required the reported value is the average of the results.   NOTE:  PAHs monitoring frequency is annually as per permit Table S3.1\nCompleted 12th - 16th February 2024 ",null,null,null,null,null,null,null,null,null,"Template may require adjustment for any bespoke monitoring requirements of permit - please also check that all default ELV values, reference periods and the stated oxygen reference value match those for your plant, and edit if necessary!"]
[]
[]
["Results of emissions to air that are periodically monitored - oxygen reference 11% "]
["Substance",null,"Ref. Period","Emission Limit Value",null,"Average",null,null,null,null,"User to add additional tables as necessary, depending on whether quarterly or bi-annual reporting is required for the compliance year"]
[null,null,null,null,null,"A1","A2","A3","A4","A5"]
["Hydrogen fluoride",null,"Average of 3 consecutive measurements of at least 30 minutes each","1 mg/m3",null,0.06,"N/A","N/A","N/A","N/A"]
["Cd and Tl and their compounds",null,"Average of 3 consecutive measurements of at least 30 minutes each","0.02 mg/m3",null,"<0.001","N/A","N/A","N/A","N/A"]
["Hg and its compounds",null,"Average of 3 consecutive measurements of at least 30 minutes each","0.02 mg/m3",null,2E-3,"N/A","N/A","N/A","N/A"]
["Sb, As, Pb, Cr, Co, Cu, Mn, Ni, V and their compounds",null,"Average of 3 consecutive measurements of at least 30 minutes each","0.3 mg/m3",null,1.2999999999999999E-2,"N/A","N/A","N/A","N/A"]
["Dioxins & Furans (I-TEQ)",null,"6-8hrs","0.06 ng/m3",null,1.66E-2,"N/A","N/A","N/A","N/A"]
["PCBs (WHO-TEQ Humans / Mammals)",null,"6-8hrs","None set ng/m3",null,8.9999999999999998E-4,"N/A","N/A","N/A","N/A"]
["PCBs (WHO-TEQ Fish)",null,"6-8hrs","None set ng/m3",null,4.1E-5,"N/A","N/A","N/A","N/A"]
["PCBs (WHO-TEQ Birds)",null,"6-8hrs","None set ng/m3",null,2.2499999999999998E-3,"N/A","N/A","N/A","N/A"]
["Dioxins & Furans (WHO-TEQ Humans / Mammals)",null,"6-8hrs","None set ng/m3",null,1.4999999999999999E-2,"N/A","N/A","N/A","N/A"]
["Dioxins & Furans (WHO-TEQ Fish)",null,"6-8hrs","None set ng/m3",null,1.6199999999999999E-2,"N/A","N/A","N/A","N/A"]
["Dioxins & Furans (WHO-TEQ Birds)",null,"6-8hrs","None set ng/m3",null,2.69E-2,"N/A","N/A","N/A","N/A"]
["Brominated Dioxins & Furans (I-TEQ)",null,"6-8hrs","None set ng/m3",null,5.4999999999999997E-3,"N/A","N/A","N/A","N/A"]
["Anthanthrene",null,"6-8hrs","None set µg/m3",null,"N/A","N/A","N/A","N/A","N/A"]
["Benzo(a)anthracene",null,"6-8hrs","None set µg/m3",null,"N/A","N/A","N/A","N/A","N/A"]
["Benzo(a)pyrene",null,"6-8hrs","None set µg/m3",null,"N/A","N/A","N/A","N/A","N/A"]
["Benzo(b)fluoranthene",null,"6-8hrs","None set µg/m3",null,"N/A","N/A","N/A","N/A","N/A"]
["Benzo(b)naptho(2,1-d) thiophene",null,"6-8hrs","None set µg/m3",null,"N/A","N/A","N/A","N/A","N/A"]
["Benzo(c)phenanthrene",null,"6-8hrs","None set µg/m3",null,"N/A","N/A","N/A","N/A","N/A"]
["Benzo(ghi)perylene",null,"6-8hrs","None set µg/m3",null,"N/A","N/A","N/A","N/A","N/A"]
["Benzo(k)fluoranthene",null,"6-8hrs","None set µg/m3",null,"N/A","N/A","N/A","N/A","N/A"]
["Cholanthrene",null,"6-8hrs","None set µg/m3",null,"N/A","N/A","N/A","N/A","N/A"]
["Chrysene",null,"6-8hrs","None set µg/m3",null,"N/A","N/A","N/A","N/A","N/A"]
["Cyclopenta(cd)pyrene",null,"6-8hrs","None set µg/m3",null,"N/A","N/A","N/A","N/A","N/A"]
["Dibenzo(ai)pyrene",null,"6-8hrs","None set µg/m3",null,"N/A","N/A","N/A","N/A","N/A"]
["Dibenzo(ah)anthracene",null,"6-8hrs","None set µg/m3",null,"N/A","N/A","N/A","N/A","N/A"]
["Fluoranthene",null,"6-8hrs","None set µg/m3",null,"N/A","N/A","N/A","N/A","N/A"]
["Indeno(123-cd) pyrene",null,"6-8hrs","None set µg/m3",null,"N/A","N/A","N/A","N/A","N/A"]
["Naphthalene",null,"6-8hrs","None set µg/m3",null,"N/A","N/A","N/A","N/A","N/A"]
["Comments :"]
["Values quoted above are WITHOUT the uncertainty subtracted. ‘how to assess compliance with an ELV within Monitoring stack emissions: maximum uncertainty values for periodic monitoring - GOV.UK (www.gov.uk) (formerly part of M2)' allows the uncertainty to be substracted before assessment against ELV."]

{"sheet":"Air (periodic) Q2","index":14,"n_rows":41,"n_cols":11,"rows_kept":41,"cut":false,"hidden":false,"merged":[[39,0,39,9],[40,0,41,9],[22,0,22,1],[22,3,22,4],[36,0,36,1],[36,3,36,4],[37,0,37,1],[37,3,37,4],[38,0,38,1],[38,3,38,4],[33,0,33,1],[33,3,33,4],[34,0,34,1],[34,3,34,4],[35,0,35,1],[35,3,35,4],[30,0,30,1],[30,3,30,4],[31,0,31,1],[31,3,31,4],[32,0,32,1],[32,3,32,4],[27,0,27,1],[27,3,27,4],[28,0,28,1],[28,3,28,4],[29,0,29,1],[29,3,29,4],[24,0,24,1],[24,3,24,4],[25,0,25,1],[25,3,25,4],[26,0,26,1],[26,3,26,4],[20,0,20,1],[20,3,20,4],[21,0,21,1],[21,3,21,4],[23,0,23,1],[23,3,23,4],[17,0,17,1],[17,3,17,4],[18,0,18,1],[18,3,18,4],[19,0,19,1],[19,3,19,4],[15,0,15,1],[15,3,15,4],[15,10,16,10],[15,11,16,11],[15,12,16,12],[16,0,16,1],[16,3,16,4],[12,0,12,1],[12,3,12,4],[13,0,13,1],[13,3,13,4],[13,10,14,12],[14,0,14,1],[14,3,14,4],[5,0,6,9],[5,10,8,13],[8,0,8,9],[9,0,10,1],[9,2,10,2],[9,3,10,4],[9,5,9,9],[9,10,11,13],[11,0,11,1],[11,3,11,4]]}
[{"$f":"+'Cover Page'!$B$29","v":"Annual Performance Report 2024"},null,null,null,{"$f":"+'Cover Page'!$B$33","v":"Newhurst Energy Recovery Facility"}]
[]
["Emissions to Air (periodically monitored)"]
[]
["Summary of monitoring undertaken, standards used and compliance",null,null,null,null,null,null,null,null,null,"Notes:"]
["All analysis below completed by permit specified method. Where triplicate runs of the measurement is required the reported value is the average of the results.   NOTE:  PAHs monitoring frequency is annually as per permit Table S3.1\nCompleted  21st - 23rd May 2024 ",null,null,null,null,null,null,null,null,null,"Template may require adjustment for any bespoke monitoring requirements of permit - please also check that all default ELV values, reference periods and the stated oxygen reference value match those for your plant, and edit if necessary!"]
[]
[]
["Results of emissions to air that are periodically monitored - oxygen reference 11% "]
["Substance",null,"Ref. Period","Emission Limit Value",null,"Average",null,null,null,null,"User to add additional tables as necessary, depending on whether quarterly or bi-annual reporting is required for the compliance year"]
[null,null,null,null,null,"A1","A2","A3","A4","A5"]
["Hydrogen fluoride",null,"Average of 3 consecutive measurements of at least 30 minutes each","1 mg/m3",null,0.03,"N/A","N/A","N/A","N/A"]
["Cd and Tl and their compounds",null,"Average of 3 consecutive measurements of at least 30 minutes each","0.02 mg/m3",null,1E-3,"N/A","N/A","N/A","N/A"]
["Hg and its compounds",null,"Average of 3 consecutive measurements of at least 30 minutes each","0.02 mg/m3",null,3.0000000000000001E-3,"N/A","N/A","N/A","N/A"]
["Sb, As, Pb, Cr, Co, Cu, Mn, Ni, V and their compounds",null,"Average of 3 consecutive measurements of at least 30 minutes each","0.3 mg/m3",null,0.01,"N/A","N/A","N/A","N/A"]
["Dioxins & Furans (I-TEQ)",null,"6-8hrs","0.06 ng/m3",null,"0.065*\n0.0517 with MU removed","N/A","N/A","N/A","N/A"]
["PCBs (WHO-TEQ Humans / Mammals)",null,"6-8hrs","None set ng/m3",null,8.9999999999999993E-3,"N/A","N/A","N/A","N/A"]
["PCBs (WHO-TEQ Fish)",null,"6-8hrs","None set ng/m3",null,4.0000000000000002E-4,"N/A","N/A","N/A","N/A"]
["PCBs (WHO-TEQ Birds)",null,"6-8hrs","None set ng/m3",null,1.4E-2,"N/A","N/A","N/A","N/A"]
["Dioxins & Furans (WHO-TEQ Humans / Mammals)",null,"6-8hrs","None set ng/m3",null,5.5399999999999998E-2,"N/A","N/A","N/A","N/A"]
["Dioxins & Furans (WHO-TEQ Fish)",null,"6-8hrs","None set ng/m3",null,6.4199999999999993E-2,"N/A","N/A","N/A","N/A"]
["Dioxins & Furans (WHO-TEQ Birds)",null,"6-8hrs","None set ng/m3",null,0.1047,"N/A","N/A","N/A","N/A"]
["Brominated Dioxins & Furans (I-TEQ)",null,"6-8hrs","None set ng/m3",null,1.0000000000000001E-5,"N/A","N/A","N/A","N/A"]
["Anthanthrene",null,"6-8hrs","None set µg/m3",null,"<0.001","N/A","N/A","N/A","N/A"]
["Benzo(a)anthracene",null,"6-8hrs","None set µg/m3",null,4.0000000000000001E-3,"N/A","N/A","N/A","N/A"]
["Benzo(a)pyrene",null,"6-8hrs","None set µg/m3",null,"<0.001","N/A","N/A","N/A","N/A"]
["Benzo(b)fluoranthene",null,"6-8hrs","None set µg/m3",null,3.0000000000000001E-3,"N/A","N/A","N/A","N/A"]
["Benzo(b)naptho(2,1-d) thiophene",null,"6-8hrs","None set µg/m3",null,1E-3,"N/A","N/A","N/A","N/A"]
["Benzo(c)phenanthrene",null,"6-8hrs","None set µg/m3",null,"<0.001","N/A","N/A","N/A","N/A"]
["Benzo(ghi)perylene",null,"6-8hrs","None set µg/m3",null,2E-3,"N/A","N/A","N/A","N/A"]
["Benzo(k)fluoranthene",null,"6-8hrs","None set µg/m3",null,2E-3,"N/A","N/A","N/A","N/A"]
["Cholanthrene",null,"6-8hrs","None set µg/m3",null,"<0.001","N/A","N/A","N/A","N/A"]
["Chrysene",null,"6-8hrs","None set µg/m3",null,8.9999999999999993E-3,"N/A","N/A","N/A","N/A"]
["Cyclopenta(cd)pyrene",null,"6-8hrs","None set µg/m3",null,"<0.001","N/A","N/A","N/A","N/A"]
["Dibenzo(ai)pyrene",null,"6-8hrs","None set µg/m3",null,"<0.001","N/A","N/A","N/A","N/A"]
["Dibenzo(ah)anthracene",null,"6-8hrs","None set µg/m3",null,"<0.001","N/A","N/A","N/A","N/A"]
["Fluoranthene",null,"6-8hrs","None set µg/m3",null,9.7000000000000003E-2,"N/A","N/A","N/A","N/A"]
["Indeno(123-cd) pyrene",null,"6-8hrs","None set µg/m3",null,3.0000000000000001E-3,"N/A","N/A","N/A","N/A"]
["Naphthalene",null,"6-8hrs","None set µg/m3",null,0.34,"N/A","N/A","N/A","N/A"]
["Comments :"]
["* Values quoted above are WITHOUT the uncertainty subtracted. ‘how to assess compliance with an ELV within Monitoring stack emissions: maximum uncertainty values for periodic monitoring - GOV.UK (www.gov.uk) (formerly part of M2)' allows the uncertainty to be substracted before assessment against ELV. Accepted as correct and not a permit breach - CAR form CAR Form Q2 2024 RP3004MA-0519663."]

{"sheet":"Air (periodic) H2","index":15,"n_rows":41,"n_cols":11,"rows_kept":41,"cut":false,"hidden":false,"merged":[[39,0,39,9],[40,0,41,9],[22,0,22,1],[22,3,22,4],[36,0,36,1],[36,3,36,4],[37,0,37,1],[37,3,37,4],[38,0,38,1],[38,3,38,4],[33,0,33,1],[33,3,33,4],[34,0,34,1],[34,3,34,4],[35,0,35,1],[35,3,35,4],[30,0,30,1],[30,3,30,4],[31,0,31,1],[31,3,31,4],[32,0,32,1],[32,3,32,4],[27,0,27,1],[27,3,27,4],[28,0,28,1],[28,3,28,4],[29,0,29,1],[29,3,29,4],[24,0,24,1],[24,3,24,4],[25,0,25,1],[25,3,25,4],[26,0,26,1],[26,3,26,4],[20,0,20,1],[20,3,20,4],[21,0,21,1],[21,3,21,4],[23,0,23,1],[23,3,23,4],[17,0,17,1],[17,3,17,4],[18,0,18,1],[18,3,18,4],[19,0,19,1],[19,3,19,4],[15,0,15,1],[15,3,15,4],[15,10,16,10],[15,11,16,11],[15,12,16,12],[16,0,16,1],[16,3,16,4],[12,0,12,1],[12,3,12,4],[13,0,13,1],[13,3,13,4],[13,10,14,12],[14,0,14,1],[14,3,14,4],[5,0,6,9],[5,10,8,13],[8,0,8,9],[9,0,10,1],[9,2,10,2],[9,3,10,4],[9,5,9,9],[9,10,11,13],[11,0,11,1],[11,3,11,4]]}
[{"$f":"+'Cover Page'!$B$29","v":"Annual Performance Report 2024"},null,null,null,{"$f":"+'Cover Page'!$B$33","v":"Newhurst Energy Recovery Facility"}]
[]
["Emissions to Air (periodically monitored)"]
[]
["Summary of monitoring undertaken, standards used and compliance",null,null,null,null,null,null,null,null,null,"Notes:"]
["All analysis below completed by permit specified method. Where triplicate runs of the measurement is required the reported value is the average of the results.   NOTE:  PAHs monitoring frequency is annually as per permit Table S3.1\nCompleted 22nd - 24th October 2024 \nPeriodic monitoring now biannually as required by the permit after the first year of operation.",null,null,null,null,null,null,null,null,null,"Template may require adjustment for any bespoke monitoring requirements of permit - please also check that all default ELV values, reference periods and the stated oxygen reference value match those for your plant, and edit if necessary!"]
[]
[]
["Results of emissions to air that are periodically monitored - oxygen reference 11% "]
["Substance",null,"Ref. Period","Emission Limit Value",null,"Average",null,null,null,null,"User to add additional tables as necessary, depending on whether quarterly or bi-annual reporting is required for the compliance year"]
[null,null,null,null,null,"A1","A2","A3","A4","A5"]
["Hydrogen fluoride",null,"Average of 3 consecutive measurements of at least 30 minutes each","1 mg/m3",null,"<0.047","N/A","N/A","N/A","N/A"]
["Cd and Tl and their compounds",null,"Average of 3 consecutive measurements of at least 30 minutes each","0.02 mg/m3",null,"<0.0013","N/A","N/A","N/A","N/A"]
["Hg and its compounds",null,"Average of 3 consecutive measurements of at least 30 minutes each","0.02 mg/m3",null,8.9999999999999993E-3,"N/A","N/A","N/A","N/A"]
["Sb, As, Pb, Cr, Co, Cu, Mn, Ni, V and their compounds",null,"Average of 3 consecutive measurements of at least 30 minutes each","0.3 mg/m3",null,4.2999999999999997E-2,"N/A","N/A","N/A","N/A"]
["Dioxins & Furans (I-TEQ)",null,"6-8hrs","0.06 ng/m3",null,1.7000000000000001E-2,"N/A","N/A","N/A","N/A"]
["PCBs (WHO-TEQ Humans / Mammals)",null,"6-8hrs","None set ng/m3",null,2.728E-3,"N/A","N/A","N/A","N/A"]
["PCBs (WHO-TEQ Fish)",null,"6-8hrs","None set ng/m3",null,1.3200000000000001E-4,"N/A","N/A","N/A","N/A"]
["PCBs (WHO-TEQ Birds)",null,"6-8hrs","None set ng/m3",null,5.7330000000000002E-3,"N/A","N/A","N/A","N/A"]
["Dioxins & Furans (WHO-TEQ Humans / Mammals)",null,"6-8hrs","None set ng/m3",null,1.7000000000000001E-2,"N/A","N/A","N/A","N/A"]
["Dioxins & Furans (WHO-TEQ Fish)",null,"6-8hrs","None set ng/m3",null,1.46E-2,"N/A","N/A","N/A","N/A"]
["Dioxins & Furans (WHO-TEQ Birds)",null,"6-8hrs","None set ng/m3",null,1.61E-2,"N/A","N/A","N/A","N/A"]
["Brominated Dioxins & Furans (I-TEQ)",null,"6-8hrs","None set ng/m3",null,1.8E-3,"N/A","N/A","N/A","N/A"]
["Anthanthrene",null,"6-8hrs","None set µg/m3",null,"N/A","N/A","N/A","N/A","N/A"]
["Benzo(a)anthracene",null,"6-8hrs","None set µg/m3",null,"N/A","N/A","N/A","N/A","N/A"]
["Benzo(a)pyrene",null,"6-8hrs","None set µg/m3",null,"N/A","N/A","N/A","N/A","N/A"]
["Benzo(b)fluoranthene",null,"6-8hrs","None set µg/m3",null,"N/A","N/A","N/A","N/A","N/A"]
["Benzo(b)naptho(2,1-d) thiophene",null,"6-8hrs","None set µg/m3",null,"N/A","N/A","N/A","N/A","N/A"]
["Benzo(c)phenanthrene",null,"6-8hrs","None set µg/m3",null,"N/A","N/A","N/A","N/A","N/A"]
["Benzo(ghi)perylene",null,"6-8hrs","None set µg/m3",null,"N/A","N/A","N/A","N/A","N/A"]
["Benzo(k)fluoranthene",null,"6-8hrs","None set µg/m3",null,"N/A","N/A","N/A","N/A","N/A"]
["Cholanthrene",null,"6-8hrs","None set µg/m3",null,"N/A","N/A","N/A","N/A","N/A"]
["Chrysene",null,"6-8hrs","None set µg/m3",null,"N/A","N/A","N/A","N/A","N/A"]
["Cyclopenta(cd)pyrene",null,"6-8hrs","None set µg/m3",null,"N/A","N/A","N/A","N/A","N/A"]
["Dibenzo(ai)pyrene",null,"6-8hrs","None set µg/m3",null,"N/A","N/A","N/A","N/A","N/A"]
["Dibenzo(ah)anthracene",null,"6-8hrs","None set µg/m3",null,"N/A","N/A","N/A","N/A","N/A"]
["Fluoranthene",null,"6-8hrs","None set µg/m3",null,"N/A","N/A","N/A","N/A","N/A"]
["Indeno(123-cd) pyrene",null,"6-8hrs","None set µg/m3",null,"N/A","N/A","N/A","N/A","N/A"]
["Naphthalene",null,"6-8hrs","None set µg/m3",null,"N/A","N/A","N/A","N/A","N/A"]
["Comments :"]
["Values quoted above are WITHOUT the uncertainty subtracted. ‘how to assess compliance with an ELV within Monitoring stack emissions: maximum uncertainty values for periodic monitoring - GOV.UK (www.gov.uk) (formerly part of M2)' allows the uncertainty to be substracted before assessment against ELV."]

{"sheet":"Air (CEMS)","index":16,"n_rows":29,"n_cols":18,"rows_kept":29,"cut":false,"hidden":false,"merged":[[28,0,28,12],[11,0,12,0],[5,0,6,12],[8,0,8,12],[9,0,10,0],[9,2,10,2],[9,1,10,1],[9,3,9,4],[9,5,9,6],[9,7,9,8],[9,9,9,10],[9,11,9,12]]}
[{"$f":"+'Cover Page'!$B$29","v":"Annual Performance Report 2024"},null,null,null,null,null,null,null,{"$f":"+'Cover Page'!$B$33","v":"Newhurst Energy Recovery Facility"}]
[]
["Emissions to Air (continuously monitored)"]
[null,null,null,null,null,null,null,null,null,null,null,null,null,"Notes:"]
["Summary of monitoring undertaken, standards used and compliance",null,null,null,null,null,null,null,null,null,null,null,null,"Template may require adjustment for any bespoke monitoring requirements of permit"]
["All results below monitored by CEMs.  No invalid days of data.",null,null,null,null,null,null,null,null,null,null,null,null,"Please check that all default ELV values match those for your plant and edit if necessary!"]
[null,null,null,null,null,null,null,null,null,null,null,null,null,"Report to 1 decimal place"]
[]
["Results of emissions to air that are continuously monitored (maximum and average values for each line) - oxygen reference 11%"]
["Substance","Reference Period","Emission Limit Value","A1",null,"A2",null,"A3",null,"A4",null,"A5"]
[null,null,null,"Max.","Avg.","Max.","Avg.","Max.","Avg.","Max.","Avg.","Max.","Avg."]
["Oxides of nitrogen","Daily mean","180 mg/m3 ",164.3,159.69999999999999,"N/A","N/A","N/A","N/A","N/A","N/A","N/A","N/A"]
[null,"½ hourly mean","400 mg/m3 ",164.3,159.69999999999999,"N/A","N/A","N/A","N/A","N/A","N/A","N/A","N/A"]
["Particulates","Daily mean","5 mg/m3",0.3,0,"N/A","N/A","N/A","N/A","N/A","N/A","N/A","N/A"]
[null,"½ hourly mean","30 mg/m3 ",0.4,0.1,"N/A","N/A","N/A","N/A","N/A","N/A","N/A","N/A"]
["Total Organic Carbon ","Daily mean","10 mg/m3 ",0.3,0.2,"N/A","N/A","N/A","N/A","N/A","N/A","N/A","N/A",null,null,null,null,3]
[null,"½ hourly mean","20 mg/m3 ",0.4,0.2,"N/A","N/A","N/A","N/A","N/A","N/A","N/A","N/A"]
["Hydrogen chloride ","Daily mean","8 mg/m3 ",6.9,6.3,"N/A","N/A","N/A","N/A","N/A","N/A","N/A","N/A"]
[null,"½ hourly mean","60 mg/m3 ",6.9,6.3,"N/A","N/A","N/A","N/A","N/A","N/A","N/A","N/A"]
["Sulphur dioxide","Daily mean","40 mg/m3 ",3,2,"N/A","N/A","N/A","N/A","N/A","N/A","N/A","N/A"]
[null,"½ hourly mean","200 mg/m3 ",3.1,2.1,"N/A","N/A","N/A","N/A","N/A","N/A","N/A","N/A"]
["Carbon monoxide ","Daily mean","50 mg/m3 ",5.4,3.7,"N/A","N/A","N/A","N/A","N/A","N/A","N/A","N/A"]
[null,"95%ile 10-min max","150 mg/m3 *",114.2,27.5,"N/A","N/A","N/A","N/A","N/A","N/A","N/A","N/A"]
[null,"10 min mean","150 mg/m3 *",6,3.8,"N/A","N/A","N/A","N/A","N/A","N/A","N/A","N/A"]
["Nitrous Oxide","Daily mean","No limit",0.2,0.1,"N/A","N/A","N/A","N/A","N/A","N/A","N/A","N/A"]
[null,"½ hourly mean","No limit",0.2,0.1,"N/A","N/A","N/A","N/A","N/A","N/A","N/A","N/A"]
[" Ammonia","Daily mean","15 mg/m3 ",0.1,0,"N/A","N/A","N/A","N/A","N/A","N/A","N/A","N/A"]
["Comments :"]
["Note - The maximum indicated for June was 178.9 however this was only for a 3hr period before plant shutdown. The rolling 24hr period (as per permit)  ending at plant off was 73.6 - duly reported to Agency.. Acknowledged in Q2 CAR form as no breach. (CAR Form Q2 2024 RP3004MA-0519663). Said 73.6mg/Nm3  used within calculation of above averages.\n\nNote - the data suggests TOC on 18th November had one half hour at 20.1 however this was not an emission. During the routine, planned, 6 monthly service of the CEMS a filter is replaced which is located at the back of the sample probes for the duty & standby gas analysers. An issue with the filter indicated an increased TOC level, the 'elevated' time period on the duty was 12:57 - 13:16. The CO report and other data showed that there were no combustion issues at the time and that the indicated elevated TOC was due to the filter not due to plant process & waste combustion. Filters have been returned to manufacturer for investigation.  Issue duly reported in writing to site EA officers 19th November 2024.\nMaximum 1/2 hr emission in November 7.0mg/Nm3"]

{"sheet":"HCl","index":17,"n_rows":79,"n_cols":17,"rows_kept":79,"cut":false,"hidden":false,"merged":[[12,16,15,18],[51,9,63,9],[66,9,78,9],[4,9,4,14],[4,1,4,3],[4,4,4,6],[48,0,51,6],[47,0,47,6],[6,9,18,9],[21,9,33,9],[36,9,48,9],[3,16,7,18],[9,16,11,18],[18,4,18,6]]}
[{"$f":"+'Cover Page'!$B$29","v":"Annual Performance Report 2024"},null,null,null,{"$f":"+'Cover Page'!$B$33","v":"Newhurst Energy Recovery Facility"}]
[]
["Monitoring of Hydrogen Chloride emissions",null,null,"Whole Installation",null,null,"See  Notes in Cell Q3",null,null,{"$f":"+A3","v":"Monitoring of Hydrogen Chloride emissions"},null,null,null,"Per Combustion Line",null,null,"Notes:"]
[null,null,null,null,null,null,null,null,null,null,null,null,null,null,null,null,"User to add logic to complete Whole installation, Table A5:G18. From the data in Per Combustion Line, Table J6:O79, subject to No. of lines installed"]
[{"$f":"+'Cover Page'!C39","v":2024},"1/2 Hourly Reference Periods",null,null,"Daily Reference Periods"]
["mg/Nm3","1/2 hourly HCl ELV","Monthly mean of half-hourly averages","Highest half- hourly average","Daily HCl ELV","Monthly mean of  daily averages","Highest daily average",null,null,{"$f":"+A5","v":2024},"mg/Nm3","Monthly mean of half-hourly averages","Highest half- hourly average","Monthly mean of  daily averages","Highest daily average"]
["Jan",60,{"$f":"L7","v":6},{"$f":"M7","v":9.1999999999999993},8,{"$f":"N7","v":6},{"$f":"O7","v":6.3},null,null,"A1","Jan",6,9.1999999999999993,6,6.3]
["Feb",60,{"$f":"L8","v":6},{"$f":"M8","v":9},8,{"$f":"N8","v":6},{"$f":"O8","v":6.4},null,null,null,"Feb",6,9,6,6.4]
["Mar",60,6,12.4,8,6,6.2,null,null,null,"Mar",6,12.4,6,6.2,null,"Whole Installation table A5:G18:"]
["Apr",60,6,9.6,8,5.9,6.1,null,null,null,"Apr",6,9.6,5.9,6.1,null,"Mean: for 1/2 hourly and daily periods calculate mean of values across all operational combustion lines for the month"]
["May",60,6,9.5,8,6,6.4,null,null,null,"May",6,9.5,6,6.4]
["Jun",60,5.9,8.3000000000000007,8,5.9,6.1,null,null,null,"Jun",5.9,8.3000000000000007,5.9,6.1]
["Jul",60,6.2,9.5,8,6.2,7.1,null,null,null,"Jul",6.2,9.5,6.2,7.1,null,"Maximum: for 1/2 hourly and daily periods use the highest value across all operational combustion lines for the month"]
["Aug",60,6.4,10.9,8,6.4,7,null,null,null,"Aug",6.4,10.9,6.4,7]
["Sep",60,6.5,10.199999999999999,8,6.5,7,null,null,null,"Sep",6.5,10.199999999999999,6.5,7]
["Oct",60,6.5,9.4,8,6.4,6.9,null,null,null,"Oct",6.5,9.4,6.4,6.9]
["Nov",60,6.9,10.199999999999999,8,6.9,7,null,null,null,"Nov",6.9,10.199999999999999,6.9,7]
["Dec",60,6.9,9.5,8,6.9,7,null,null,null,"Dec",6.9,9.5,6.9,7]
[null,null,null,null,null,null,null,null,null,null,"Annual",{"$f":"AVERAGE(L7:L18)","v":6.2750000000000012},{"$f":"MAX(M7:M18)","v":12.4},{"$f":"AVERAGE(N7:N18)","v":6.2583333333333337},{"$f":"MAX(O7:O18)","v":7.1}]
[]
[null,null,null,null,null,null,null,null,null,{"$f":"+A5","v":2024},"mg/Nm3","Monthly mean of half-hourly averages","Highest half- hourly average","Monthly mean of  daily averages","Highest daily average"]
[null,null,null,null,null,null,null,null,null,"A2","Jan"]
[null,null,null,null,null,null,null,null,null,null,"Feb"]
[null,null,null,null,null,null,null,null,null,null,"Mar"]
[null,null,null,null,null,null,null,null,null,null,"Apr"]
[null,null,null,null,null,null,null,null,null,null,"May"]
[null,null,null,null,null,null,null,null,null,null,"Jun"]
[null,null,null,null,null,null,null,null,null,null,"Jul"]
[null,null,null,null,null,null,null,null,null,null,"Aug"]
[null,null,null,null,null,null,null,null,null,null,"Sep"]
[null,null,null,null,null,null,null,null,null,null,"Oct"]
[null,null,null,null,null,null,null,null,null,null,"Nov"]
[null,null,null,null,null,null,null,null,null,null,"Dec"]
[null,null,null,null,null,null,null,null,null,null,"Annual",{"$f":"AVERAGE(L22:L33)","v":{"$error":"#DIV/0!"}},{"$f":"MAX(M22:M33)","v":0},{"$f":"AVERAGE(N22:N33)","v":{"$error":"#DIV/0!"}},{"$f":"MAX(O22:O33)","v":0}]
[]
[null,null,null,null,null,null,null,null,null,{"$f":"+A5","v":2024},"mg/Nm3","Monthly mean of half-hourly averages","Highest half- hourly average","Monthly mean of  daily averages","Highest daily average"]
[null,null,null,null,null,null,null,null,null,"A3","Jan"]
[null,null,null,null,null,null,null,null,null,null,"Feb"]
[null,null,null,null,null,null,null,null,null,null,"Mar"]
[null,null,null,null,null,null,null,null,null,null,"Apr"]
[null,null,null,null,null,null,null,null,null,null,"May"]
[null,null,null,null,null,null,null,null,null,null,"Jun"]
[null,null,null,null,null,null,null,null,null,null,"Jul"]
[null,null,null,null,null,null,null,null,null,null,"Aug"]
[null,null,null,null,null,null,null,null,null,null,"Sep"]
[null,null,null,null,null,null,null,null,null,null,"Oct"]
[null,null,null,null,null,null,null,null,null,null,"Nov"]
["Comments :",null,null,null,null,null,null,null,null,null,"Dec"]
[null,null,null,null,null,null,null,null,null,null,"Annual",{"$f":"AVERAGE(L37:L48)","v":{"$error":"#DIV/0!"}},{"$f":"MAX(M37:M48)","v":0},{"$f":"AVERAGE(N37:N48)","v":{"$error":"#DIV/0!"}},{"$f":"MAX(O37:O48)","v":0}]
[]
[null,null,null,null,null,null,null,null,null,{"$f":"+A5","v":2024},"mg/Nm3","Monthly mean of half-hourly averages","Highest half- hourly average","Monthly mean of  daily averages","Highest daily average"]
[null,null,null,null,null,null,null,null,null,"A4","Jan"]
[null,null,null,null,null,null,null,null,null,null,"Feb"]
[null,null,null,null,null,null,null,null,null,null,"Mar"]
[null,null,null,null,null,null,null,null,null,null,"Apr"]
[null,null,null,null,null,null,null,null,null,null,"May"]
[null,null,null,null,null,null,null,null,null,null,"Jun"]
[null,null,null,null,null,null,null,null,null,null,"Jul"]
[null,null,null,null,null,null,null,null,null,null,"Aug"]
[null,null,null,null,null,null,null,null,null,null,"Sep"]
[null,null,null,null,null,null,null,null,null,null,"Oct"]
[null,null,null,null,null,null,null,null,null,null,"Nov"]
[null,null,null,null,null,null,null,null,null,null,"Dec"]
[null,null,null,null,null,null,null,null,null,null,"Annual",{"$f":"AVERAGE(L52:L63)","v":{"$error":"#DIV/0!"}},{"$f":"MAX(M52:M63)","v":0},{"$f":"AVERAGE(N52:N63)","v":{"$error":"#DIV/0!"}},{"$f":"MAX(O52:O63)","v":0}]
[]
[null,null,null,null,null,null,null,null,null,{"$f":"+A5","v":2024},"mg/Nm3","Monthly mean of half-hourly averages","Highest half- hourly average","Monthly mean of  daily averages","Highest daily average"]
[null,null,null,null,null,null,null,null,null,"A5","Jan"]
[null,null,null,null,null,null,null,null,null,null,"Feb"]
[null,null,null,null,null,null,null,null,null,null,"Mar"]
[null,null,null,null,null,null,null,null,null,null,"Apr"]
[null,null,null,null,null,null,null,null,null,null,"May"]
[null,null,null,null,null,null,null,null,null,null,"Jun"]
[null,null,null,null,null,null,null,null,null,null,"Jul"]
[null,null,null,null,null,null,null,null,null,null,"Aug"]
[null,null,null,null,null,null,null,null,null,null,"Sep"]
[null,null,null,null,null,null,null,null,null,null,"Oct"]
[null,null,null,null,null,null,null,null,null,null,"Nov"]
[null,null,null,null,null,null,null,null,null,null,"Dec"]
[null,null,null,null,null,null,null,null,null,null,"Annual",{"$f":"AVERAGE(L67:L78)","v":{"$error":"#DIV/0!"}},{"$f":"MAX(M67:M78)","v":0},{"$f":"AVERAGE(N67:N78)","v":{"$error":"#DIV/0!"}},{"$f":"MAX(O67:O78)","v":0}]

{"sheet":"SO2","index":18,"n_rows":79,"n_cols":17,"rows_kept":79,"cut":false,"hidden":false,"merged":[[3,16,7,18],[9,16,11,18],[12,16,15,18],[66,9,78,9],[4,1,4,3],[4,4,4,6],[4,9,4,14],[6,9,18,9],[21,9,33,9],[36,9,48,9],[47,0,47,6],[48,0,51,6],[51,9,63,9],[18,4,18,6]]}
[{"$f":"+'Cover Page'!$B$29","v":"Annual Performance Report 2024"},null,null,null,{"$f":"+'Cover Page'!$B$33","v":"Newhurst Energy Recovery Facility"}]
[]
["Monitoring of Sulphur dioxide emissions",null,null,"Whole Installation",null,null,"See  Notes in Cell Q3",null,null,{"$f":"+A3","v":"Monitoring of Sulphur dioxide emissions"},null,null,null,"Per Combustion Line",null,null,"Notes:"]
[null,null,null,null,null,null,null,null,null,null,null,null,null,null,null,null,"User to add logic to complete Whole installation, Table A5:G18. From the data in Per Combustion Line, Table J6:O79, subject to No. of lines installed"]
[{"$f":"+'Cover Page'!C39","v":2024},"1/2 Hourly Reference Periods",null,null,"Daily Reference Periods"]
["mg/Nm3","1/2 hourly SO2 ELV","Monthly mean of half-hourly averages","Highest half- hourly average","Daily SO2 ELV","Monthly mean of  daily averages","Highest daily average",null,null,{"$f":"+A5","v":2024},"mg/Nm3","Monthly mean of half-hourly averages","Highest half- hourly average","Monthly mean of  daily averages","Highest daily average"]
["Jan",200,{"$f":"L7","v":2},{"$f":"M7","v":8.5},40,{"$f":"N7","v":1.9},{"$f":"O7","v":3.7},null,null,"A1","Jan",2,8.5,1.9,3.7]
["Feb",200,{"$f":"L8","v":2.2000000000000002},{"$f":"M8","v":9.9},40,{"$f":"N8","v":2.2000000000000002},{"$f":"O8","v":4.5},null,null,null,"Feb",2.2000000000000002,9.9,2.2000000000000002,4.5]
["Mar",200,2.6,27,40,2.5,4.0999999999999996,null,null,null,"Mar",2.6,27,2.5,4.0999999999999996,null,"Whole Installation table A5:G18:"]
["Apr",200,3,12.1,40,2.9,4.0999999999999996,null,null,null,"Apr",3,12.1,2.9,4.0999999999999996,null,"Mean: for 1/2 hourly and daily periods calculate mean of values across all operational combustion lines for the month"]
["May",200,1.4,22.2,40,1.1000000000000001,2.8,null,null,null,"May",1.4,22.2,1.1000000000000001,2.8]
["Jun",200,1.1000000000000001,5.9,40,1,1.4,null,null,null,"Jun",1.1000000000000001,5.9,1,1.4]
["Jul",200,1.5,10.6,40,1.4,2.5,null,null,null,"Jul",1.5,10.6,1.4,2.5,null,"Maximum: for 1/2 hourly and daily periods use the highest value across all operational combustion lines for the month"]
["Aug",200,2.2000000000000002,26.9,40,2.2000000000000002,5.3,null,null,null,"Aug",2.2000000000000002,26.9,2.2000000000000002,5.3]
["Sep",200,1.9,12.8,40,1.8,2.4,null,null,null,"Sep",1.9,12.8,1.8,2.4]
["Oct",200,1.7,12.8,40,1.7,2.8,null,null,null,"Oct",1.7,12.8,1.7,2.8]
["Nov",200,2.6,27.3,40,2.5,3.9,null,null,null,"Nov",2.6,27.3,2.5,3.9]
["Dec",200,3.1,18.8,40,3,4.3,null,null,null,"Dec",3.1,18.8,3,4.3]
[null,null,null,null,null,null,null,null,null,null,"Annual",{"$f":"AVERAGE(L7:L18)","v":2.1083333333333334},{"$f":"MAX(M7:M18)","v":27.3},{"$f":"AVERAGE(N7:N18)","v":2.0166666666666666},{"$f":"MAX(O7:O18)","v":5.3}]
[]
[null,null,null,null,null,null,null,null,null,{"$f":"+A5","v":2024},"mg/Nm3","Monthly mean of half-hourly averages","Highest half- hourly average","Monthly mean of  daily averages","Highest daily average"]
[null,null,null,null,null,null,null,null,null,"A2","Jan"]
[null,null,null,null,null,null,null,null,null,null,"Feb"]
[null,null,null,null,null,null,null,null,null,null,"Mar"]
[null,null,null,null,null,null,null,null,null,null,"Apr"]
[null,null,null,null,null,null,null,null,null,null,"May"]
[null,null,null,null,null,null,null,null,null,null,"Jun"]
[null,null,null,null,null,null,null,null,null,null,"Jul"]
[null,null,null,null,null,null,null,null,null,null,"Aug"]
[null,null,null,null,null,null,null,null,null,null,"Sep"]
[null,null,null,null,null,null,null,null,null,null,"Oct"]
[null,null,null,null,null,null,null,null,null,null,"Nov"]
[null,null,null,null,null,null,null,null,null,null,"Dec"]
[null,null,null,null,null,null,null,null,null,null,"Annual",{"$f":"AVERAGE(L22:L33)","v":{"$error":"#DIV/0!"}},{"$f":"MAX(M22:M33)","v":0},{"$f":"AVERAGE(N22:N33)","v":{"$error":"#DIV/0!"}},{"$f":"MAX(O22:O33)","v":0}]
[]
[null,null,null,null,null,null,null,null,null,{"$f":"+A5","v":2024},"mg/Nm3","Monthly mean of half-hourly averages","Highest half- hourly average","Monthly mean of  daily averages","Highest daily average"]
[null,null,null,null,null,null,null,null,null,"A3","Jan"]
[null,null,null,null,null,null,null,null,null,null,"Feb"]
[null,null,null,null,null,null,null,null,null,null,"Mar"]
[null,null,null,null,null,null,null,null,null,null,"Apr"]
[null,null,null,null,null,null,null,null,null,null,"May"]
[null,null,null,null,null,null,null,null,null,null,"Jun"]
[null,null,null,null,null,null,null,null,null,null,"Jul"]
[null,null,null,null,null,null,null,null,null,null,"Aug"]
[null,null,null,null,null,null,null,null,null,null,"Sep"]
[null,null,null,null,null,null,null,null,null,null,"Oct"]
[null,null,null,null,null,null,null,null,null,null,"Nov"]
["Comments :",null,null,null,null,null,null,null,null,null,"Dec"]
[null,null,null,null,null,null,null,null,null,null,"Annual",{"$f":"AVERAGE(L37:L48)","v":{"$error":"#DIV/0!"}},{"$f":"MAX(M37:M48)","v":0},{"$f":"AVERAGE(N37:N48)","v":{"$error":"#DIV/0!"}},{"$f":"MAX(O37:O48)","v":0}]
[]
[null,null,null,null,null,null,null,null,null,{"$f":"+A5","v":2024},"mg/Nm3","Monthly mean of half-hourly averages","Highest half- hourly average","Monthly mean of  daily averages","Highest daily average"]
[null,null,null,null,null,null,null,null,null,"A4","Jan"]
[null,null,null,null,null,null,null,null,null,null,"Feb"]
[null,null,null,null,null,null,null,null,null,null,"Mar"]
[null,null,null,null,null,null,null,null,null,null,"Apr"]
[null,null,null,null,null,null,null,null,null,null,"May"]
[null,null,null,null,null,null,null,null,null,null,"Jun"]
[null,null,null,null,null,null,null,null,null,null,"Jul"]
[null,null,null,null,null,null,null,null,null,null,"Aug"]
[null,null,null,null,null,null,null,null,null,null,"Sep"]
[null,null,null,null,null,null,null,null,null,null,"Oct"]
[null,null,null,null,null,null,null,null,null,null,"Nov"]
[null,null,null,null,null,null,null,null,null,null,"Dec"]
[null,null,null,null,null,null,null,null,null,null,"Annual",{"$f":"AVERAGE(L52:L63)","v":{"$error":"#DIV/0!"}},{"$f":"MAX(M52:M63)","v":0},{"$f":"AVERAGE(N52:N63)","v":{"$error":"#DIV/0!"}},{"$f":"MAX(O52:O63)","v":0}]
[]
[null,null,null,null,null,null,null,null,null,{"$f":"+A5","v":2024},"mg/Nm3","Monthly mean of half-hourly averages","Highest half- hourly average","Monthly mean of  daily averages","Highest daily average"]
[null,null,null,null,null,null,null,null,null,"A5","Jan"]
[null,null,null,null,null,null,null,null,null,null,"Feb"]
[null,null,null,null,null,null,null,null,null,null,"Mar"]
[null,null,null,null,null,null,null,null,null,null,"Apr"]
[null,null,null,null,null,null,null,null,null,null,"May"]
[null,null,null,null,null,null,null,null,null,null,"Jun"]
[null,null,null,null,null,null,null,null,null,null,"Jul"]
[null,null,null,null,null,null,null,null,null,null,"Aug"]
[null,null,null,null,null,null,null,null,null,null,"Sep"]
[null,null,null,null,null,null,null,null,null,null,"Oct"]
[null,null,null,null,null,null,null,null,null,null,"Nov"]
[null,null,null,null,null,null,null,null,null,null,"Dec"]
[null,null,null,null,null,null,null,null,null,null,"Annual",{"$f":"AVERAGE(L67:L78)","v":{"$error":"#DIV/0!"}},{"$f":"MAX(M67:M78)","v":0},{"$f":"AVERAGE(N67:N78)","v":{"$error":"#DIV/0!"}},{"$f":"MAX(O67:O78)","v":0}]

{"sheet":"NOx","index":19,"n_rows":79,"n_cols":17,"rows_kept":79,"cut":false,"hidden":false,"merged":[[3,16,7,18],[9,16,11,18],[12,16,15,18],[66,9,78,9],[4,1,4,3],[4,4,4,6],[4,9,4,14],[6,9,18,9],[21,9,33,9],[36,9,48,9],[47,0,47,6],[48,0,51,6],[51,9,63,9],[18,4,18,6]]}
[{"$f":"+'Cover Page'!$B$29","v":"Annual Performance Report 2024"},null,null,null,{"$f":"+'Cover Page'!$B$33","v":"Newhurst Energy Recovery Facility"}]
[]
["Monitoring of Oxides of Nitrogen emissions",null,null,"Whole Installation",null,null,"See  Notes in Cell Q3",null,null,{"$f":"+A3","v":"Monitoring of Oxides of Nitrogen emissions"},null,null,null,"Per Combustion Line",null,null,"Notes:"]
[null,null,null,null,null,null,null,null,null,null,null,null,null,null,null,null,"User to add logic to complete Whole installation, Table A5:G18. From the data in Per Combustion Line, Table J6:O79, subject to No. of lines installed"]
[{"$f":"+'Cover Page'!C39","v":2024},"1/2 Hourly Reference Periods",null,null,"Daily Reference Periods"]
["mg/Nm3","1/2 hourly NOx ELV","Monthly mean of half-hourly averages","Highest half- hourly average","Daily NOx ELV","Monthly mean of  daily averages","Highest daily average",null,null,{"$f":"+A5","v":2024},"mg/Nm3","Monthly mean of half-hourly averages","Highest half- hourly average","Monthly mean of  daily averages","Highest daily average"]
["Jan",400,{"$f":"L7","v":163.80000000000001},{"$f":"M7","v":196},180,{"$f":"N7","v":163.80000000000001},{"$f":"O7","v":165.8},null,null,"A1","Jan",163.80000000000001,196,163.80000000000001,165.8]
["Feb",400,{"$f":"L8","v":164.2},{"$f":"M8","v":210.9},180,{"$f":"N8","v":164.2},{"$f":"O8","v":165.8},null,null,null,"Feb",164.2,210.9,164.2,165.8]
["Mar",400,164.3,194.5,180,164.3,165.7,null,null,null,"Mar",164.3,194.5,164.3,165.7,null,"Whole Installation table A5:G18:"]
["Apr",400,164.2,192.9,180,164.1,166.5,null,null,null,"Apr",164.2,192.9,164.1,166.5,null,"Mean: for 1/2 hourly and daily periods calculate mean of values across all operational combustion lines for the month"]
["May",400,161.30000000000001,195.7,180,161.30000000000001,166.1,null,null,null,"May",161.30000000000001,195.7,161.30000000000001,166.1]
["Jun",400,148.6,193.3,180,148.6,165.4,null,null,null,"Jun",148.6,193.3,148.6,165.4]
["Jul",400,163.80000000000001,190.5,180,163.80000000000001,165.6,null,null,null,"Jul",163.80000000000001,190.5,163.80000000000001,165.6,null,"Maximum: for 1/2 hourly and daily periods use the highest value across all operational combustion lines for the month"]
["Aug",400,164.1,189.7,180,164.1,165.9,null,null,null,"Aug",164.1,189.7,164.1,165.9]
["Sep",400,158.9,202.6,180,158.9,164.8,null,null,null,"Sep",158.9,202.6,158.9,164.8]
["Oct",400,159.5,199.1,180,159.4,164.5,null,null,null,"Oct",159.5,199.1,159.4,164.5]
["Nov",400,150.1,188.2,180,150,158.6,null,null,null,"Nov",150.1,188.2,150,158.6]
["Dec",400,153.69999999999999,208.7,180,153.9,165.7,null,null,null,"Dec",153.69999999999999,208.7,153.9,165.7]
[null,null,null,null,null,null,null,null,null,null,"Annual",{"$f":"AVERAGE(L7:L18)","v":159.70833333333334},{"$f":"MAX(M7:M18)","v":210.9},{"$f":"AVERAGE(N7:N18)","v":159.70000000000002},{"$f":"MAX(O7:O18)","v":166.5}]
[]
[null,null,null,null,null,null,null,null,null,{"$f":"+A5","v":2024},"mg/Nm3","Monthly mean of half-hourly averages","Highest half- hourly average","Monthly mean of  daily averages","Highest daily average"]
[null,null,null,null,null,null,null,null,null,"A2","Jan"]
[null,null,null,null,null,null,null,null,null,null,"Feb"]
[null,null,null,null,null,null,null,null,null,null,"Mar"]
[null,null,null,null,null,null,null,null,null,null,"Apr"]
[null,null,null,null,null,null,null,null,null,null,"May"]
[null,null,null,null,null,null,null,null,null,null,"Jun"]
[null,null,null,null,null,null,null,null,null,null,"Jul"]
[null,null,null,null,null,null,null,null,null,null,"Aug"]
[null,null,null,null,null,null,null,null,null,null,"Sep"]
[null,null,null,null,null,null,null,null,null,null,"Oct"]
[null,null,null,null,null,null,null,null,null,null,"Nov"]
[null,null,null,null,null,null,null,null,null,null,"Dec"]
[null,null,null,null,null,null,null,null,null,null,"Annual",{"$f":"AVERAGE(L22:L33)","v":{"$error":"#DIV/0!"}},{"$f":"MAX(M22:M33)","v":0},{"$f":"AVERAGE(N22:N33)","v":{"$error":"#DIV/0!"}},{"$f":"MAX(O22:O33)","v":0}]
[]
[null,null,null,null,null,null,null,null,null,{"$f":"+A5","v":2024},"mg/Nm3","Monthly mean of half-hourly averages","Highest half- hourly average","Monthly mean of  daily averages","Highest daily average"]
[null,null,null,null,null,null,null,null,null,"A3","Jan"]
[null,null,null,null,null,null,null,null,null,null,"Feb"]
[null,null,null,null,null,null,null,null,null,null,"Mar"]
[null,null,null,null,null,null,null,null,null,null,"Apr"]
[null,null,null,null,null,null,null,null,null,null,"May"]
[null,null,null,null,null,null,null,null,null,null,"Jun"]
[null,null,null,null,null,null,null,null,null,null,"Jul"]
[null,null,null,null,null,null,null,null,null,null,"Aug"]
[null,null,null,null,null,null,null,null,null,null,"Sep"]
[null,null,null,null,null,null,null,null,null,null,"Oct"]
[null,null,null,null,null,null,null,null,null,null,"Nov"]
["Comments :",null,null,null,null,null,null,null,null,null,"Dec"]
[null,null,null,null,null,null,null,null,null,null,"Annual",{"$f":"AVERAGE(L37:L48)","v":{"$error":"#DIV/0!"}},{"$f":"MAX(M37:M48)","v":0},{"$f":"AVERAGE(N37:N48)","v":{"$error":"#DIV/0!"}},{"$f":"MAX(O37:O48)","v":0}]
[]
[null,null,null,null,null,null,null,null,null,{"$f":"+A5","v":2024},"mg/Nm3","Monthly mean of half-hourly averages","Highest half- hourly average","Monthly mean of  daily averages","Highest daily average"]
[null,null,null,null,null,null,null,null,null,"A4","Jan"]
[null,null,null,null,null,null,null,null,null,null,"Feb"]
[null,null,null,null,null,null,null,null,null,null,"Mar"]
[null,null,null,null,null,null,null,null,null,null,"Apr"]
[null,null,null,null,null,null,null,null,null,null,"May"]
[null,null,null,null,null,null,null,null,null,null,"Jun"]
[null,null,null,null,null,null,null,null,null,null,"Jul"]
[null,null,null,null,null,null,null,null,null,null,"Aug"]
[null,null,null,null,null,null,null,null,null,null,"Sep"]
[null,null,null,null,null,null,null,null,null,null,"Oct"]
[null,null,null,null,null,null,null,null,null,null,"Nov"]
[null,null,null,null,null,null,null,null,null,null,"Dec"]
[null,null,null,null,null,null,null,null,null,null,"Annual",{"$f":"AVERAGE(L52:L63)","v":{"$error":"#DIV/0!"}},{"$f":"MAX(M52:M63)","v":0},{"$f":"AVERAGE(N52:N63)","v":{"$error":"#DIV/0!"}},{"$f":"MAX(O52:O63)","v":0}]
[]
[null,null,null,null,null,null,null,null,null,{"$f":"+A5","v":2024},"mg/Nm3","Monthly mean of half-hourly averages","Highest half- hourly average","Monthly mean of  daily averages","Highest daily average"]
[null,null,null,null,null,null,null,null,null,"A5","Jan"]
[null,null,null,null,null,null,null,null,null,null,"Feb"]
[null,null,null,null,null,null,null,null,null,null,"Mar"]
[null,null,null,null,null,null,null,null,null,null,"Apr"]
[null,null,null,null,null,null,null,null,null,null,"May"]
[null,null,null,null,null,null,null,null,null,null,"Jun"]
[null,null,null,null,null,null,null,null,null,null,"Jul"]
[null,null,null,null,null,null,null,null,null,null,"Aug"]
[null,null,null,null,null,null,null,null,null,null,"Sep"]
[null,null,null,null,null,null,null,null,null,null,"Oct"]
[null,null,null,null,null,null,null,null,null,null,"Nov"]
[null,null,null,null,null,null,null,null,null,null,"Dec"]
[null,null,null,null,null,null,null,null,null,null,"Annual",{"$f":"AVERAGE(L67:L78)","v":{"$error":"#DIV/0!"}},{"$f":"MAX(M67:M78)","v":0},{"$f":"AVERAGE(N67:N78)","v":{"$error":"#DIV/0!"}},{"$f":"MAX(O67:O78)","v":0}]

{"sheet":"TOC","index":20,"n_rows":79,"n_cols":17,"rows_kept":79,"cut":false,"hidden":false,"merged":[[3,16,7,18],[9,16,11,18],[12,16,15,18],[66,9,78,9],[4,1,4,3],[4,4,4,6],[4,9,4,14],[6,9,18,9],[21,9,33,9],[36,9,48,9],[47,0,47,6],[48,0,51,6],[51,9,63,9]]}
[{"$f":"+'Cover Page'!$B$29","v":"Annual Performance Report 2024"},null,null,null,{"$f":"+'Cover Page'!$B$33","v":"Newhurst Energy Recovery Facility"}]
[]
["Monitoring of Total organic carbon emissions",null,null,"Whole Installation",null,null,"See  Notes in Cell Q3",null,null,{"$f":"+A3","v":"Monitoring of Total organic carbon emissions"},null,null,null,"Per Combustion Line",null,null,"Notes:"]
[null,null,null,null,null,null,null,null,null,null,null,null,null,null,null,null,"User to add logic to complete Whole installation, Table A5:G18. From the data in Per Combustion Line, Table J6:O79, subject to No. of lines installed"]
[{"$f":"+'Cover Page'!C39","v":2024},"1/2 Hourly Reference Periods",null,null,"Daily Reference Periods"]
["mg/Nm3","1/2 hourly TOC ELV","Monthly mean of half-hourly averages","Highest half- hourly average","Daily TOC ELV","Monthly mean of  daily averages","Highest daily average",null,null,{"$f":"+A5","v":2024},"mg/Nm3","Monthly mean of half-hourly averages","Highest half- hourly average","Monthly mean of  daily averages","Highest daily average"]
["Jan",20,{"$f":"L7","v":0.2},{"$f":"M7","v":14.6},10,{"$f":"N7","v":0.1},{"$f":"O7","v":0.5},null,null,"A1","Jan",0.2,14.6,0.1,0.5]
["Feb",20,{"$f":"L8","v":0.2},{"$f":"M8","v":10.5},10,{"$f":"N8","v":0.1},{"$f":"O8","v":0.4},null,null,null,"Feb",0.2,10.5,0.1,0.4]
["Mar",20,0.1,11.7,10,0.1,0.4,null,null,null,"Mar",0.1,11.7,0.1,0.4,null,"Whole Installation table A5:G18:"]
["Apr",20,0.1,8,10,0,0.2,null,null,null,"Apr",0.1,8,0,0.2,null,"Mean: for 1/2 hourly and daily periods calculate mean of values across all operational combustion lines for the month"]
["May",20,0.1,7.7,10,0,0.3,null,null,null,"May",0.1,7.7,0,0.3]
["Jun",20,0.1,11.7,10,0.1,0.5,null,null,null,"Jun",0.1,11.7,0.1,0.5]
["Jul",20,0.2,6.4,10,0.2,0.4,null,null,null,"Jul",0.2,6.4,0.2,0.4,null,"Maximum: for 1/2 hourly and daily periods use the highest value across all operational combustion lines for the month"]
["Aug",20,0.4,19.8,10,0.3,1.1000000000000001,null,null,null,"Aug",0.4,19.8,0.3,1.1000000000000001]
["Sep",20,0.3,12.5,10,0.2,0.8,null,null,null,"Sep",0.3,12.5,0.2,0.8]
["Oct",20,0.3,9.9,10,0.2,0.5,null,null,null,"Oct",0.3,9.9,0.2,0.5]
["Nov",20,0.3,7,10,0.2,0.7,null,null,null,"Nov",0.3,"7.0**",0.2,0.7]
["Dec",20,0.3,9.6,10,0.2,0.7,null,null,null,"Dec",0.3,9.6,0.2,0.7]
[null,null,null,null,null,null,null,null,null,null,"Annual",{"$f":"AVERAGE(L7:L18)","v":0.21666666666666665},{"$f":"MAX(M7:M18)","v":19.8},{"$f":"AVERAGE(N7:N18)","v":0.14166666666666666},{"$f":"MAX(O7:O18)","v":1.1000000000000001}]
[]
[null,null,null,null,null,null,null,null,null,{"$f":"+A5","v":2024},"mg/Nm3","Monthly mean of half-hourly averages","Highest half- hourly average","Monthly mean of  daily averages","Highest daily average"]
[null,null,null,null,null,null,null,null,null,"A2","Jan"]
[null,null,null,null,null,null,null,null,null,null,"Feb"]
[null,null,null,null,null,null,null,null,null,null,"Mar"]
[null,null,null,null,null,null,null,null,null,null,"Apr"]
[null,null,null,null,null,null,null,null,null,null,"May"]
[null,null,null,null,null,null,null,null,null,null,"Jun"]
[null,null,null,null,null,null,null,null,null,null,"Jul"]
[null,null,null,null,null,null,null,null,null,null,"Aug"]
[null,null,null,null,null,null,null,null,null,null,"Sep"]
[null,null,null,null,null,null,null,null,null,null,"Oct"]
[null,null,null,null,null,null,null,null,null,null,"Nov"]
[null,null,null,null,null,null,null,null,null,null,"Dec"]
[null,null,null,null,null,null,null,null,null,null,"Annual",{"$f":"AVERAGE(L22:L33)","v":{"$error":"#DIV/0!"}},{"$f":"MAX(M22:M33)","v":0},{"$f":"AVERAGE(N22:N33)","v":{"$error":"#DIV/0!"}},{"$f":"MAX(O22:O33)","v":0}]
[]
[null,null,null,null,null,null,null,null,null,{"$f":"+A5","v":2024},"mg/Nm3","Monthly mean of half-hourly averages","Highest half- hourly average","Monthly mean of  daily averages","Highest daily average"]
[null,null,null,null,null,null,null,null,null,"A3","Jan"]
[null,null,null,null,null,null,null,null,null,null,"Feb"]
[null,null,null,null,null,null,null,null,null,null,"Mar"]
[null,null,null,null,null,null,null,null,null,null,"Apr"]
[null,null,null,null,null,null,null,null,null,null,"May"]
[null,null,null,null,null,null,null,null,null,null,"Jun"]
[null,null,null,null,null,null,null,null,null,null,"Jul"]
[null,null,null,null,null,null,null,null,null,null,"Aug"]
[null,null,null,null,null,null,null,null,null,null,"Sep"]
[null,null,null,null,null,null,null,null,null,null,"Oct"]
[null,null,null,null,null,null,null,null,null,null,"Nov"]
["Comments :",null,null,null,null,null,null,null,null,null,"Dec"]
["Note **  - the data suggests TOC on 18th November had one half hour at 20.1 however this was not an emission. During the routine, planned, 6 monthly service of the CEMS a filter is replaced which is located at the back of the sample probes for the duty & standby gas analysers. An issue with the filter indicated an increased TOC level, the 'elevated' time period on the duty was 12:57 - 13:16. The CO report and other data showed that there were no combustion issues at the time and that the indicated elevated TOC was due to the filter not due to plant process & waste combustion. Filters have been returned to manufacturer for investigation.  Issue duly reported in writing to site EA officers 19th November 2024.\nMaximum 1/2 hr emission in November 7.0mg/Nm3",null,null,null,null,null,null,null,null,null,"Annual",{"$f":"AVERAGE(L37:L48)","v":{"$error":"#DIV/0!"}},{"$f":"MAX(M37:M48)","v":0},{"$f":"AVERAGE(N37:N48)","v":{"$error":"#DIV/0!"}},{"$f":"MAX(O37:O48)","v":0}]
[]
[null,null,null,null,null,null,null,null,null,{"$f":"+A5","v":2024},"mg/Nm3","Monthly mean of half-hourly averages","Highest half- hourly average","Monthly mean of  daily averages","Highest daily average"]
[null,null,null,null,null,null,null,null,null,"A4","Jan"]
[null,null,null,null,null,null,null,null,null,null,"Feb"]
[null,null,null,null,null,null,null,null,null,null,"Mar"]
[null,null,null,null,null,null,null,null,null,null,"Apr"]
[null,null,null,null,null,null,null,null,null,null,"May"]
[null,null,null,null,null,null,null,null,null,null,"Jun"]
[null,null,null,null,null,null,null,null,null,null,"Jul"]
[null,null,null,null,null,null,null,null,null,null,"Aug"]
[null,null,null,null,null,null,null,null,null,null,"Sep"]
[null,null,null,null,null,null,null,null,null,null,"Oct"]
[null,null,null,null,null,null,null,null,null,null,"Nov"]
[null,null,null,null,null,null,null,null,null,null,"Dec"]
[null,null,null,null,null,null,null,null,null,null,"Annual",{"$f":"AVERAGE(L52:L63)","v":{"$error":"#DIV/0!"}},{"$f":"MAX(M52:M63)","v":0},{"$f":"AVERAGE(N52:N63)","v":{"$error":"#DIV/0!"}},{"$f":"MAX(O52:O63)","v":0}]
[]
[null,null,null,null,null,null,null,null,null,{"$f":"+A5","v":2024},"mg/Nm3","Monthly mean of half-hourly averages","Highest half- hourly average","Monthly mean of  daily averages","Highest daily average"]
[null,null,null,null,null,null,null,null,null,"A5","Jan"]
[null,null,null,null,null,null,null,null,null,null,"Feb"]
[null,null,null,null,null,null,null,null,null,null,"Mar"]
[null,null,null,null,null,null,null,null,null,null,"Apr"]
[null,null,null,null,null,null,null,null,null,null,"May"]
[null,null,null,null,null,null,null,null,null,null,"Jun"]
[null,null,null,null,null,null,null,null,null,null,"Jul"]
[null,null,null,null,null,null,null,null,null,null,"Aug"]
[null,null,null,null,null,null,null,null,null,null,"Sep"]
[null,null,null,null,null,null,null,null,null,null,"Oct"]
[null,null,null,null,null,null,null,null,null,null,"Nov"]
[null,null,null,null,null,null,null,null,null,null,"Dec"]
[null,null,null,null,null,null,null,null,null,null,"Annual",{"$f":"AVERAGE(L67:L78)","v":{"$error":"#DIV/0!"}},{"$f":"MAX(M67:M78)","v":0},{"$f":"AVERAGE(N67:N78)","v":{"$error":"#DIV/0!"}},{"$f":"MAX(O67:O78)","v":0}]

{"sheet":"Particulates","index":21,"n_rows":79,"n_cols":17,"rows_kept":79,"cut":false,"hidden":false,"merged":[[4,16,8,18],[10,16,12,18],[13,16,16,18],[66,9,78,9],[4,1,4,3],[4,4,4,6],[4,9,4,14],[6,9,18,9],[21,9,33,9],[36,9,48,9],[47,0,47,6],[48,0,51,6],[51,9,63,9],[18,4,18,6]]}
[{"$f":"+'Cover Page'!$B$29","v":"Annual Performance Report 2024"},null,null,null,{"$f":"+'Cover Page'!$B$33","v":"Newhurst Energy Recovery Facility"}]
[]
["Monitoring of Particulate matter emissions",null,null,"Whole Installation",null,null,"See  Notes in Cell Q3",null,null,{"$f":"+A3","v":"Monitoring of Particulate matter emissions"},null,null,null,"Per Combustion Line",null,null,"Notes:"]
[]
[{"$f":"+'Cover Page'!C39","v":2024},"1/2 Hourly Reference Periods",null,null,"Daily Reference Periods",null,null,null,null,null,null,null,null,null,null,null,"User to add logic to complete Whole installation, Table A5:G18. From the data in Per Combustion Line, Table J6:O79, subject to No. of lines installed"]
["mg/Nm3","1/2 hourly PM ELV","Monthly mean of half-hourly averages","Highest half- hourly average","Daily PM ELV","Monthly mean of  daily averages","Highest daily average",null,null,{"$f":"+A5","v":2024},"mg/Nm3","Monthly mean of half-hourly averages","Highest half- hourly average","Monthly mean of  daily averages","Highest daily average"]
["Jan",30,{"$f":"L7","v":0.1},{"$f":"M7","v":0.1},5,{"$f":"N7","v":0},{"$f":"O7","v":0.1},null,null,"A1","Jan",0.1,0.1,0,0.1]
["Feb",30,{"$f":"L8","v":0.1},{"$f":"M8","v":1.1000000000000001},5,{"$f":"N8","v":0},{"$f":"O8","v":0.1},null,null,null,"Feb",0.1,1.1000000000000001,0,0.1]
["Mar",30,0.1,0.2,5,0,0.1,null,null,null,"Mar",0.1,0.2,0,0.1]
["Apr",30,0.1,0.1,5,0,0.1,null,null,null,"Apr",0.1,0.1,0,0.1,null,"Whole Installation table A5:G18:"]
["May",30,0.2,2.2999999999999998,5,0.1,1.4,null,null,null,"May",0.2,2.2999999999999998,0.1,1.4,null,"Mean: for 1/2 hourly and daily periods calculate mean of values across all operational combustion lines for the month"]
["Jun",30,0.4,1.8,5,0.3,1.2,null,null,null,"Jun",0.4,1.8,0.3,1.2]
["Jul",30,0.1,0.1,5,0,0.1,null,null,null,"Jul",0.1,0.1,0,0.1]
["Aug",30,0.1,0.1,5,0,0.1,null,null,null,"Aug",0.1,0.1,0,0.1,null,"Maximum: for 1/2 hourly and daily periods use the highest value across all operational combustion lines for the month"]
["Sep",30,0.1,0.1,5,0,0.1,null,null,null,"Sep",0.1,0.1,0,0.1]
["Oct",30,0.1,0.1,5,0,0.1,null,null,null,"Oct",0.1,0.1,0,0.1]
["Nov",30,0.1,0.1,5,0,0.1,null,null,null,"Nov",0.1,0.1,0,0.1]
["Dec",30,0.1,0.1,5,0,0.1,null,null,null,"Dec",0.1,0.1,0,0.1]
[null,null,null,null,null,null,null,null,null,null,"Annual",{"$f":"AVERAGE(L7:L18)","v":0.13333333333333339},{"$f":"MAX(M7:M18)","v":2.2999999999999998},{"$f":"AVERAGE(N7:N18)","v":3.3333333333333333E-2},{"$f":"MAX(O7:O18)","v":1.4}]
[]
[null,null,null,null,null,null,null,null,null,{"$f":"+A5","v":2024},"mg/Nm3","Monthly mean of half-hourly averages","Highest half- hourly average","Monthly mean of  daily averages","Highest daily average"]
[null,null,null,null,null,null,null,null,null,"A2","Jan"]
[null,null,null,null,null,null,null,null,null,null,"Feb"]
[null,null,null,null,null,null,null,null,null,null,"Mar"]
[null,null,null,null,null,null,null,null,null,null,"Apr"]
[null,null,null,null,null,null,null,null,null,null,"May"]
[null,null,null,null,null,null,null,null,null,null,"Jun"]
[null,null,null,null,null,null,null,null,null,null,"Jul"]
[null,null,null,null,null,null,null,null,null,null,"Aug"]
[null,null,null,null,null,null,null,null,null,null,"Sep"]
[null,null,null,null,null,null,null,null,null,null,"Oct"]
[null,null,null,null,null,null,null,null,null,null,"Nov"]
[null,null,null,null,null,null,null,null,null,null,"Dec"]
[null,null,null,null,null,null,null,null,null,null,"Annual",{"$f":"AVERAGE(L22:L33)","v":{"$error":"#DIV/0!"}},{"$f":"MAX(M22:M33)","v":0},{"$f":"AVERAGE(N22:N33)","v":{"$error":"#DIV/0!"}},{"$f":"MAX(O22:O33)","v":0}]
[]
[null,null,null,null,null,null,null,null,null,{"$f":"+A5","v":2024},"mg/Nm3","Monthly mean of half-hourly averages","Highest half- hourly average","Monthly mean of  daily averages","Highest daily average"]
[null,null,null,null,null,null,null,null,null,"A3","Jan"]
[null,null,null,null,null,null,null,null,null,null,"Feb"]
[null,null,null,null,null,null,null,null,null,null,"Mar"]
[null,null,null,null,null,null,null,null,null,null,"Apr"]
[null,null,null,null,null,null,null,null,null,null,"May"]
[null,null,null,null,null,null,null,null,null,null,"Jun"]
[null,null,null,null,null,null,null,null,null,null,"Jul"]
[null,null,null,null,null,null,null,null,null,null,"Aug"]
[null,null,null,null,null,null,null,null,null,null,"Sep"]
[null,null,null,null,null,null,null,null,null,null,"Oct"]
[null,null,null,null,null,null,null,null,null,null,"Nov"]
["Comments :",null,null,null,null,null,null,null,null,null,"Dec"]
[null,null,null,null,null,null,null,null,null,null,"Annual",{"$f":"AVERAGE(L37:L48)","v":{"$error":"#DIV/0!"}},{"$f":"MAX(M37:M48)","v":0},{"$f":"AVERAGE(N37:N48)","v":{"$error":"#DIV/0!"}},{"$f":"MAX(O37:O48)","v":0}]
[]
[null,null,null,null,null,null,null,null,null,{"$f":"+A5","v":2024},"mg/Nm3","Monthly mean of half-hourly averages","Highest half- hourly average","Monthly mean of  daily averages","Highest daily average"]
[null,null,null,null,null,null,null,null,null,"A4","Jan"]
[null,null,null,null,null,null,null,null,null,null,"Feb"]
[null,null,null,null,null,null,null,null,null,null,"Mar"]
[null,null,null,null,null,null,null,null,null,null,"Apr"]
[null,null,null,null,null,null,null,null,null,null,"May"]
[null,null,null,null,null,null,null,null,null,null,"Jun"]
[null,null,null,null,null,null,null,null,null,null,"Jul"]
[null,null,null,null,null,null,null,null,null,null,"Aug"]
[null,null,null,null,null,null,null,null,null,null,"Sep"]
[null,null,null,null,null,null,null,null,null,null,"Oct"]
[null,null,null,null,null,null,null,null,null,null,"Nov"]
[null,null,null,null,null,null,null,null,null,null,"Dec"]
[null,null,null,null,null,null,null,null,null,null,"Annual",{"$f":"AVERAGE(L52:L63)","v":{"$error":"#DIV/0!"}},{"$f":"MAX(M52:M63)","v":0},{"$f":"AVERAGE(N52:N63)","v":{"$error":"#DIV/0!"}},{"$f":"MAX(O52:O63)","v":0}]
[]
[null,null,null,null,null,null,null,null,null,{"$f":"+A5","v":2024},"mg/Nm3","Monthly mean of half-hourly averages","Highest half- hourly average","Monthly mean of  daily averages","Highest daily average"]
[null,null,null,null,null,null,null,null,null,"A5","Jan"]
[null,null,null,null,null,null,null,null,null,null,"Feb"]
[null,null,null,null,null,null,null,null,null,null,"Mar"]
[null,null,null,null,null,null,null,null,null,null,"Apr"]
[null,null,null,null,null,null,null,null,null,null,"May"]
[null,null,null,null,null,null,null,null,null,null,"Jun"]
[null,null,null,null,null,null,null,null,null,null,"Jul"]
[null,null,null,null,null,null,null,null,null,null,"Aug"]
[null,null,null,null,null,null,null,null,null,null,"Sep"]
[null,null,null,null,null,null,null,null,null,null,"Oct"]
[null,null,null,null,null,null,null,null,null,null,"Nov"]
[null,null,null,null,null,null,null,null,null,null,"Dec"]
[null,null,null,null,null,null,null,null,null,null,"Annual",{"$f":"AVERAGE(L67:L78)","v":{"$error":"#DIV/0!"}},{"$f":"MAX(M67:M78)","v":0},{"$f":"AVERAGE(N67:N78)","v":{"$error":"#DIV/0!"}},{"$f":"MAX(O67:O78)","v":0}]

{"sheet":"CO 0.5 hourly","index":22,"n_rows":82,"n_cols":17,"rows_kept":82,"cut":false,"hidden":false,"merged":[[4,0,5,6],[6,16,10,18],[12,16,14,18],[15,16,18,18],[69,9,81,9],[7,1,7,3],[7,4,7,6],[7,9,7,14],[9,9,21,9],[24,9,36,9],[39,9,51,9],[50,0,50,6],[51,0,54,6],[54,9,66,9]]}
[{"$f":"+'Cover Page'!$B$29","v":"Annual Performance Report 2024"},null,null,null,{"$f":"+'Cover Page'!$B$33","v":"Newhurst Energy Recovery Facility"}]
[]
["Monitoring of Carbon Monoxide (half hourly)",null,null,"Whole Installation",null,null,"See  Notes in Cell Q3",null,null,{"$f":"+A3","v":"Monitoring of Carbon Monoxide (half hourly)"},null,null,null,"Per Combustion Line",null,null,"Notes:"]
[]
["Please complete this tab for your plant if you have 1/2 hourly CO ELVs; otherwise, leave it blank and complete the CO 95% 10 min tab"]
[]
[null,null,null,null,null,null,null,null,null,null,null,null,null,null,null,null,"User to add logic to complete Whole installation, Table A5:G18. From the data in Per Combustion Line, Table J6:O79, subject to No. of lines installed"]
[{"$f":"+'Cover Page'!C39","v":2024},"1/2 Hourly Reference Periods",null,null,"Daily Reference Periods"]
["mg/Nm3","1/2 hourly CO ELV","Monthly mean of half-hourly averages","Highest half- hourly average","Daily CO ELV","Monthly mean of  daily averages","Highest daily average",null,null,{"$f":"+A8","v":2024},"mg/Nm3","Monthly mean of half-hourly averages","Highest half- hourly average","Monthly mean of  daily averages","Highest daily average"]
["Jan",100,null,null,50,null,null,null,null,"A1","Jan"]
["Feb",{"$f":"+B10","v":100},null,null,{"$f":"+E10","v":50},null,null,null,null,null,"Feb"]
["Mar",{"$f":"+B11","v":100},null,null,{"$f":"+E11","v":50},null,null,null,null,null,"Mar",null,null,null,null,null,"Whole Installation table A5:G18:"]
["Apr",100,null,null,50,null,null,null,null,null,"Apr",null,null,null,null,null,"Mean: for 1/2 hourly and daily periods calculate mean of values across all operational combustion lines for the month"]
["May",100,null,null,50,null,null,null,null,null,"May"]
["Jun",100,null,null,50,null,null,null,null,null,"Jun"]
["Jul",100,null,null,50,null,null,null,null,null,"Jul",null,null,null,null,null,"Maximum: for 1/2 hourly and daily periods use the highest value across all operational combustion lines for the month"]
["Aug",100,null,null,50,null,null,null,null,null,"Aug"]
["Sep",100,null,null,50,null,null,null,null,null,"Sep"]
["Oct",100,null,null,50,null,null,null,null,null,"Oct"]
["Nov",100,null,null,50,null,null,null,null,null,"Nov"]
["Dec",100,null,null,50,null,null,null,null,null,"Dec"]
[null,null,null,null,null,null,null,null,null,null,"Annual",{"$f":"AVERAGE(L10:L21)","v":{"$error":"#DIV/0!"}},{"$f":"MAX(M10:M21)","v":0},{"$f":"AVERAGE(N10:N21)","v":{"$error":"#DIV/0!"}},{"$f":"MAX(O10:O21)","v":0}]
[]
[null,null,null,null,null,null,null,null,null,{"$f":"+A8","v":2024},"mg/Nm3","Monthly mean of half-hourly averages","Highest half- hourly average","Monthly mean of  daily averages","Highest daily average"]
[null,null,null,null,null,null,null,null,null,"A2","Jan"]
[null,null,null,null,null,null,null,null,null,null,"Feb"]
[null,null,null,null,null,null,null,null,null,null,"Mar"]
[null,null,null,null,null,null,null,null,null,null,"Apr"]
[null,null,null,null,null,null,null,null,null,null,"May"]
[null,null,null,null,null,null,null,null,null,null,"Jun"]
[null,null,null,null,null,null,null,null,null,null,"Jul"]
[null,null,null,null,null,null,null,null,null,null,"Aug"]
[null,null,null,null,null,null,null,null,null,null,"Sep"]
[null,null,null,null,null,null,null,null,null,null,"Oct"]
[null,null,null,null,null,null,null,null,null,null,"Nov"]
[null,null,null,null,null,null,null,null,null,null,"Dec"]
[null,null,null,null,null,null,null,null,null,null,"Annual",{"$f":"AVERAGE(L25:L36)","v":{"$error":"#DIV/0!"}},{"$f":"MAX(M25:M36)","v":0},{"$f":"AVERAGE(N25:N36)","v":{"$error":"#DIV/0!"}},{"$f":"MAX(O25:O36)","v":0}]
[]
[null,null,null,null,null,null,null,null,null,{"$f":"+A8","v":2024},"mg/Nm3","Monthly mean of half-hourly averages","Highest half- hourly average","Monthly mean of  daily averages","Highest daily average"]
[null,null,null,null,null,null,null,null,null,"A3","Jan"]
[null,null,null,null,null,null,null,null,null,null,"Feb"]
[null,null,null,null,null,null,null,null,null,null,"Mar"]
[null,null,null,null,null,null,null,null,null,null,"Apr"]
[null,null,null,null,null,null,null,null,null,null,"May"]
[null,null,null,null,null,null,null,null,null,null,"Jun"]
[null,null,null,null,null,null,null,null,null,null,"Jul"]
[null,null,null,null,null,null,null,null,null,null,"Aug"]
[null,null,null,null,null,null,null,null,null,null,"Sep"]
[null,null,null,null,null,null,null,null,null,null,"Oct"]
[null,null,null,null,null,null,null,null,null,null,"Nov"]
["Comments :",null,null,null,null,null,null,null,null,null,"Dec"]
["10 min CO averages",null,null,null,null,null,null,null,null,null,"Annual",{"$f":"AVERAGE(L40:L51)","v":{"$error":"#DIV/0!"}},{"$f":"MAX(M40:M51)","v":0},{"$f":"AVERAGE(N40:N51)","v":{"$error":"#DIV/0!"}},{"$f":"MAX(O40:O51)","v":0}]
[]
[null,null,null,null,null,null,null,null,null,{"$f":"+A8","v":2024},"mg/Nm3","Monthly mean of half-hourly averages","Highest half- hourly average","Monthly mean of  daily averages","Highest daily average"]
[null,null,null,null,null,null,null,null,null,"A4","Jan"]
[null,null,null,null,null,null,null,null,null,null,"Feb"]
[null,null,null,null,null,null,null,null,null,null,"Mar"]
[null,null,null,null,null,null,null,null,null,null,"Apr"]
[null,null,null,null,null,null,null,null,null,null,"May"]
[null,null,null,null,null,null,null,null,null,null,"Jun"]
[null,null,null,null,null,null,null,null,null,null,"Jul"]
[null,null,null,null,null,null,null,null,null,null,"Aug"]
[null,null,null,null,null,null,null,null,null,null,"Sep"]
[null,null,null,null,null,null,null,null,null,null,"Oct"]
[null,null,null,null,null,null,null,null,null,null,"Nov"]
[null,null,null,null,null,null,null,null,null,null,"Dec"]
[null,null,null,null,null,null,null,null,null,null,"Annual",{"$f":"AVERAGE(L55:L66)","v":{"$error":"#DIV/0!"}},{"$f":"MAX(M55:M66)","v":0},{"$f":"AVERAGE(N55:N66)","v":{"$error":"#DIV/0!"}},{"$f":"MAX(O55:O66)","v":0}]
[]
[null,null,null,null,null,null,null,null,null,{"$f":"+A8","v":2024},"mg/Nm3","Monthly mean of half-hourly averages","Highest half- hourly average","Monthly mean of  daily averages","Highest daily average"]
[null,null,null,null,null,null,null,null,null,"A5","Jan"]
[null,null,null,null,null,null,null,null,null,null,"Feb"]
[null,null,null,null,null,null,null,null,null,null,"Mar"]
[null,null,null,null,null,null,null,null,null,null,"Apr"]
[null,null,null,null,null,null,null,null,null,null,"May"]
[null,null,null,null,null,null,null,null,null,null,"Jun"]
[null,null,null,null,null,null,null,null,null,null,"Jul"]
[null,null,null,null,null,null,null,null,null,null,"Aug"]
[null,null,null,null,null,null,null,null,null,null,"Sep"]
[null,null,null,null,null,null,null,null,null,null,"Oct"]
[null,null,null,null,null,null,null,null,null,null,"Nov"]
[null,null,null,null,null,null,null,null,null,null,"Dec"]
[null,null,null,null,null,null,null,null,null,null,"Annual",{"$f":"AVERAGE(L70:L81)","v":{"$error":"#DIV/0!"}},{"$f":"MAX(M70:M81)","v":0},{"$f":"AVERAGE(N70:N81)","v":{"$error":"#DIV/0!"}},{"$f":"MAX(O70:O81)","v":0}]

{"sheet":"CO 95% 10 min","index":23,"n_rows":82,"n_cols":19,"rows_kept":82,"cut":false,"hidden":false,"merged":[[4,0,5,7],[6,18,10,20],[12,18,14,20],[15,18,18,20],[69,10,81,10],[7,1,7,4],[7,5,7,7],[7,10,7,16],[9,10,21,10],[24,10,36,10],[39,10,51,10],[50,0,50,7],[54,10,66,10],[51,0,53,7],[54,0,56,7]]}
[{"$f":"+'Cover Page'!$B$29","v":"Annual Performance Report 2024"},null,null,null,{"$f":"+'Cover Page'!$B$33","v":"Newhurst Energy Recovery Facility"}]
[]
["Monitoring of Carbon Monoxide (10-minute avg)",null,null,null,"Whole Installation",null,null,"See  Notes in Cell S3",null,{"$f":"+A3","v":"Monitoring of Carbon Monoxide (10-minute avg)"},null,null,null,null,"Per Combustion Line",null,"Notes:",null,"Notes:"]
[]
["Please complete this tab for your plant if you have 10-minute average CO ELVs; otherwise, leave it blank and complete the CO 0.5 hourly tab"]
[]
[null,null,null,null,null,null,null,null,null,null,null,null,null,null,null,null,null,null,"User to add logic to complete Whole installation, Table A5:H18. From the data in Per Combustion Line, Table K6:Q79, subject to No. of lines installed"]
[{"$f":"+'Cover Page'!C39","v":2024},"10-minute Reference Periods",null,null,null,"Daily Reference Periods"]
["mg/Nm3","95%ile 10-min avg CO ELV","Highest daily 95%ile 10-min average","Monthly mean of 10-min averages","Highest 10-min average","Daily CO ELV","Monthly mean of  daily averages","Highest daily average",null,null,{"$f":"+A8","v":2024},"mg/Nm3","Highest daily 95%ile 10-min average","Monthly mean of 10-min averages","Highest 10-min average","Monthly mean of  daily averages","Highest daily average"]
["Jan",150,{"$f":"M10","v":4.3},{"$f":"N10","v":2},{"$f":"O10","v":453},50,{"$f":"P10","v":1.9},{"$f":"Q10","v":4.8},null,null,"A1","Jan",4.3,2,453,1.9,4.8]
["Feb",{"$f":"+B10","v":150},{"$f":"M11","v":5},{"$f":"N11","v":2},{"$f":"O11","v":393.6},{"$f":"+F10","v":50},{"$f":"P11","v":2},{"$f":"Q11","v":7.1},null,null,null,"Feb",5,2,393.6,2,7.1]
["Mar",{"$f":"+B11","v":150},8.1,2.5,446.4,{"$f":"+F11","v":50},2.5,6.4,null,null,null,"Mar",8.1,2.5,446.4,2.5,6.4,null,"Whole Installation table A5:H18:"]
["Apr",150,13.1,3.1,617,50,3,5.6,null,null,null,"Apr",13.1,3.1,617,3,5.6,null,"Mean: for 10-min and daily periods use average of all operational combustion lines."]
["May",150,10.7,3,655.20000000000005,50,3,9.6,null,null,null,"May",10.7,3,655.20000000000005,3,9.6]
["Jun",150,73.599999999999994,4.0999999999999996,1061.2,50,3.8,14.1,null,null,null,"Jun",73.599999999999994,4.0999999999999996,1061.2,3.8,14.1]
["Jul",150,6.7,2.5,795.5,50,2.5,7,null,null,null,"Jul",6.7,2.5,795.5,2.5,7,null,"Maximum: for 10-min and daily periods use the highest of all operational combustion lines in any month."]
["Aug",150,11.2,4.5,2098.5,50,4.5999999999999996,30.6,null,null,null,"Aug",11.2,4.5,2098.5,4.5999999999999996,30.6]
["Sep",150,35.1,6,1618.2,50,5.4,20.2,null,null,null,"Sep",35.1,6,1618.2,5.4,20.2]
["Oct",150,25.5,5.3,598.6,50,5.3,10.6,null,null,null,"Oct",25.5,5.3,598.6,5.3,10.6]
["Nov",150,32,5.2,951.2,50,5.0999999999999996,13.4,null,null,null,"Nov",32,5.2,951.2,5.0999999999999996,13.4]
["Dec",150,114.2,5.0999999999999996,838.8,50,4.9000000000000004,21,null,null,null,"Dec",114.2,5.0999999999999996,838.8,4.9000000000000004,21]
[null,null,null,null,null,null,null,null,null,null,null,"Annual",{"$f":"AVERAGE(M10:M21)","v":28.291666666666668},null,{"$f":"MAX(O10:O21)","v":2098.5},{"$f":"AVERAGE(P10:P21)","v":3.6666666666666661},{"$f":"MAX(Q10:Q21)","v":30.6}]
[]
[null,null,null,null,null,null,null,null,null,null,{"$f":"+A8","v":2024},"mg/Nm3","Highest daily 95%ile 10-min average","Monthly mean of 10-min averages","Highest 10-min average","Monthly mean of  daily averages","Highest daily average"]
[null,null,null,null,null,null,null,null,null,null,"A2","Jan"]
[null,null,null,null,null,null,null,null,null,null,null,"Feb"]
[null,null,null,null,null,null,null,null,null,null,null,"Mar"]
[null,null,null,null,null,null,null,null,null,null,null,"Apr"]
[null,null,null,null,null,null,null,null,null,null,null,"May"]
[null,null,null,null,null,null,null,null,null,null,null,"Jun"]
[null,null,null,null,null,null,null,null,null,null,null,"Jul"]
[null,null,null,null,null,null,null,null,null,null,null,"Aug"]
[null,null,null,null,null,null,null,null,null,null,null,"Sep"]
[null,null,null,null,null,null,null,null,null,null,null,"Oct"]
[null,null,null,null,null,null,null,null,null,null,null,"Nov"]
[null,null,null,null,null,null,null,null,null,null,null,"Dec"]
[null,null,null,null,null,null,null,null,null,null,null,"Annual",{"$f":"AVERAGE(M25:M36)","v":{"$error":"#DIV/0!"}},null,{"$f":"MAX(O25:O36)","v":0},{"$f":"AVERAGE(P25:P36)","v":{"$error":"#DIV/0!"}},{"$f":"MAX(Q25:Q36)","v":0}]
[]
[null,null,null,null,null,null,null,null,null,null,{"$f":"+A8","v":2024},"mg/Nm3","Highest daily 95%ile 10-min average","Monthly mean of 10-min averages","Highest 10-min average","Monthly mean of  daily averages","Highest daily average"]
[null,null,null,null,null,null,null,null,null,null,"A3","Jan"]
[null,null,null,null,null,null,null,null,null,null,null,"Feb"]
[null,null,null,null,null,null,null,null,null,null,null,"Mar"]
[null,null,null,null,null,null,null,null,null,null,null,"Apr"]
[null,null,null,null,null,null,null,null,null,null,null,"May"]
[null,null,null,null,null,null,null,null,null,null,null,"Jun"]
[null,null,null,null,null,null,null,null,null,null,null,"Jul"]
[null,null,null,null,null,null,null,null,null,null,null,"Aug"]
[null,null,null,null,null,null,null,null,null,null,null,"Sep"]
[null,null,null,null,null,null,null,null,null,null,null,"Oct"]
[null,null,null,null,null,null,null,null,null,null,null,"Nov"]
["Comments :",null,null,null,null,null,null,null,null,null,null,"Dec"]
["Environment Agency explanatory note: The 10-minute average ELV is based on the “95th percentile”. In this case this means that 95% of the 10 minute averages in the relevant 24-hour period (i.e. 137) must be below 150 mg/Nm3, and 5% (i.e. 7) are allowed to be any value above 150 mg/Nm3. Whilst we expect operators to minimise CO emissions at all times, it is perfectly acceptable for the value of the maximum 10-minute average to be above 150 mg/Nm3, provided the 95th percentile ELV has been met for that period. ",null,null,null,null,null,null,null,null,null,null,"Annual",{"$f":"AVERAGE(M40:M51)","v":{"$error":"#DIV/0!"}},null,{"$f":"MAX(O40:O51)","v":0},{"$f":"AVERAGE(P40:P51)","v":{"$error":"#DIV/0!"}},{"$f":"MAX(Q40:Q51)","v":0}]
[]
[null,null,null,null,null,null,null,null,null,null,{"$f":"+A8","v":2024},"mg/Nm3","Highest daily 95%ile 10-min average","Monthly mean of 10-min averages","Highest 10-min average","Monthly mean of  daily averages","Highest daily average"]
["The maximum indicated for June was 178.9 however this was only for a 3hr period before plant shutdown. The rolling 24hr period (as per permit)  ending at plant off was 73.6150 mg/Nm3 - duly reported to Agency.. Acknowledged in Q2 CAR form as no breach. (CAR Form Q2 2024 RP3004MA-0519663)",null,null,null,null,null,null,null,null,null,"A4","Jan"]
[null,null,null,null,null,null,null,null,null,null,null,"Feb"]
[null,null,null,null,null,null,null,null,null,null,null,"Mar"]
[null,null,null,null,null,null,null,null,null,null,null,"Apr"]
[null,null,null,null,null,null,null,null,null,null,null,"May"]
[null,null,null,null,null,null,null,null,null,null,null,"Jun"]
[null,null,null,null,null,null,null,null,null,null,null,"Jul"]
[null,null,null,null,null,null,null,null,null,null,null,"Aug"]
[null,null,null,null,null,null,null,null,null,null,null,"Sep"]
[null,null,null,null,null,null,null,null,null,null,null,"Oct"]
[null,null,null,null,null,null,null,null,null,null,null,"Nov"]
[null,null,null,null,null,null,null,null,null,null,null,"Dec"]
[null,null,null,null,null,null,null,null,null,null,null,"Annual",{"$f":"AVERAGE(M55:M66)","v":{"$error":"#DIV/0!"}},null,{"$f":"MAX(O55:O66)","v":0},{"$f":"AVERAGE(P55:P66)","v":{"$error":"#DIV/0!"}},{"$f":"MAX(Q55:Q66)","v":0}]
[]
[null,null,null,null,null,null,null,null,null,null,{"$f":"+A8","v":2024},"mg/Nm3","95%ile 10-min avg maximum","Monthly CO 10-min avg mean","10-min avg maximum","Monthly daily mean","Monthly daily maximum"]
[null,null,null,null,null,null,null,null,null,null,"A5","Jan"]
[null,null,null,null,null,null,null,null,null,null,null,"Feb"]
[null,null,null,null,null,null,null,null,null,null,null,"Mar"]
[null,null,null,null,null,null,null,null,null,null,null,"Apr"]
[null,null,null,null,null,null,null,null,null,null,null,"May"]
[null,null,null,null,null,null,null,null,null,null,null,"Jun"]
[null,null,null,null,null,null,null,null,null,null,null,"Jul"]
[null,null,null,null,null,null,null,null,null,null,null,"Aug"]
[null,null,null,null,null,null,null,null,null,null,null,"Sep"]
[null,null,null,null,null,null,null,null,null,null,null,"Oct"]
[null,null,null,null,null,null,null,null,null,null,null,"Nov"]
[null,null,null,null,null,null,null,null,null,null,null,"Dec"]
[null,null,null,null,null,null,null,null,null,null,null,"Annual",{"$f":"AVERAGE(M70:M81)","v":{"$error":"#DIV/0!"}},null,{"$f":"MAX(O70:O81)","v":0},{"$f":"AVERAGE(P70:P81)","v":{"$error":"#DIV/0!"}},{"$f":"MAX(Q70:Q81)","v":0}]

{"sheet":"NH3","index":24,"n_rows":79,"n_cols":17,"rows_kept":79,"cut":false,"hidden":false,"merged":[[3,16,7,18],[9,16,11,18],[12,16,15,18],[66,9,78,9],[4,1,4,3],[4,4,4,6],[4,9,4,14],[6,9,18,9],[21,9,33,9],[36,9,48,9],[47,0,47,6],[48,0,51,6],[51,9,63,9],[18,4,18,6]]}
[{"$f":"+'Cover Page'!$B$29","v":"Annual Performance Report 2024"},null,null,null,{"$f":"+'Cover Page'!$B$33","v":"Newhurst Energy Recovery Facility"}]
[]
["Monitoring of Ammnonia emissions ",null,null,"Whole Installation",null,null,"See  Notes in Cell Q3",null,null,{"$f":"+A3","v":"Monitoring of Ammnonia emissions "},null,null,null,"Per Combustion Line",null,null,"Notes:"]
[null,null,null,null,null,null,null,null,null,null,null,null,null,null,null,null,"User to add logic to complete Whole installation, Table A5:G18. From the data in Per Combustion Line, Table J6:O79, subject to No. of lines installed"]
[{"$f":"+'Cover Page'!C39","v":2024},"1/2 Hourly Reference Periods",null,null,"Daily Reference Periods"]
["mg/Nm3","1/2 hourly NH3 ELV","Monthly mean of half-hourly averages","Highest half- hourly average","Daily NH3 ELV","Monthly mean of  daily averages","Highest daily average",null,null,{"$f":"+A5","v":2024},"mg/Nm3","Monthly mean of half-hourly averages","Highest half- hourly average","Monthly mean of  daily averages","Highest daily average"]
["Jan","None",{"$f":"L7","v":0},{"$f":"M7","v":0.3},15,{"$f":"N7","v":0},{"$f":"O7","v":0},null,null,"A1","Jan",0,0.3,0,0]
["Feb",{"$f":"+B7","v":"None"},{"$f":"L8","v":0},{"$f":"M8","v":0.5},15,{"$f":"N8","v":0},{"$f":"O8","v":0.1},null,null,null,"Feb",0,0.5,0,0.1]
["Mar",{"$f":"+B8","v":"None"},0,0.3,15,0,0,null,null,null,"Mar",0,0.3,0,0,null,"Whole Installation table A5:G18:"]
["Apr","None",0,0.4,15,0,0.1,null,null,null,"Apr",0,0.4,0,0.1,null,"Mean: for 1/2 hourly and daily periods calculate mean of values across all operational combustion lines for the month"]
["May","None",0.1,1.4,15,0,0.3,null,null,null,"May",0.1,1.4,0,0.3]
["Jun","None",0.1,2.2000000000000002,15,0.1,0.6,null,null,null,"Jun",0.1,2.2000000000000002,0.1,0.6]
["Jul","None",0,0.4,15,0,0,null,null,null,"Jul",0,0.4,0,0,null,"Maximum: for 1/2 hourly and daily periods use the highest value across all operational combustion lines for the month"]
["Aug","None",0,0.7,15,0,0.1,null,null,null,"Aug",0,0.7,0,0.1]
["Sep","None",0,0.9,15,0,0.2,null,null,null,"Sep",0,0.9,0,0.2]
["Oct","None",0,0.6,15,0,0.1,null,null,null,"Oct",0,0.6,0,0.1]
["Nov","None",0,0.4,15,0,0,null,null,null,"Nov",0,0.4,0,0]
["Dec","None",0,0.4,15,0,0,null,null,null,"Dec",0,0.4,0,0]
[null,null,null,null,null,null,null,null,null,null,"Annual",{"$f":"AVERAGE(L7:L18)","v":1.6666666666666666E-2},{"$f":"MAX(M7:M18)","v":2.2000000000000002},{"$f":"AVERAGE(N7:N18)","v":8.3333333333333332E-3},{"$f":"MAX(O7:O18)","v":0.6}]
[]
[null,null,null,null,null,null,null,null,null,{"$f":"+A5","v":2024},"mg/Nm3","Monthly mean of half-hourly averages","Highest half- hourly average","Monthly mean of  daily averages","Highest daily average"]
[null,null,null,null,null,null,null,null,null,"A2","Jan"]
[null,null,null,null,null,null,null,null,null,null,"Feb"]
[null,null,null,null,null,null,null,null,null,null,"Mar"]
[null,null,null,null,null,null,null,null,null,null,"Apr"]
[null,null,null,null,null,null,null,null,null,null,"May"]
[null,null,null,null,null,null,null,null,null,null,"Jun"]
[null,null,null,null,null,null,null,null,null,null,"Jul"]
[null,null,null,null,null,null,null,null,null,null,"Aug"]
[null,null,null,null,null,null,null,null,null,null,"Sep"]
[null,null,null,null,null,null,null,null,null,null,"Oct"]
[null,null,null,null,null,null,null,null,null,null,"Nov"]
[null,null,null,null,null,null,null,null,null,null,"Dec"]
[null,null,null,null,null,null,null,null,null,null,"Annual",{"$f":"AVERAGE(L22:L33)","v":{"$error":"#DIV/0!"}},{"$f":"MAX(M22:M33)","v":0},{"$f":"AVERAGE(N22:N33)","v":{"$error":"#DIV/0!"}},{"$f":"MAX(O22:O33)","v":0}]
[]
[null,null,null,null,null,null,null,null,null,{"$f":"+A5","v":2024},"mg/Nm3","Monthly mean of half-hourly averages","Highest half- hourly average","Monthly mean of  daily averages","Highest daily average"]
[null,null,null,null,null,null,null,null,null,"A3","Jan"]
[null,null,null,null,null,null,null,null,null,null,"Feb"]
[null,null,null,null,null,null,null,null,null,null,"Mar"]
[null,null,null,null,null,null,null,null,null,null,"Apr"]
[null,null,null,null,null,null,null,null,null,null,"May"]
[null,null,null,null,null,null,null,null,null,null,"Jun"]
[null,null,null,null,null,null,null,null,null,null,"Jul"]
[null,null,null,null,null,null,null,null,null,null,"Aug"]
[null,null,null,null,null,null,null,null,null,null,"Sep"]
[null,null,null,null,null,null,null,null,null,null,"Oct"]
[null,null,null,null,null,null,null,null,null,null,"Nov"]
["Comments :",null,null,null,null,null,null,null,null,null,"Dec"]
["An indicated ELV value of zero in the table above means that no ammonia limit is/was set in the permit.  ",null,null,null,null,null,null,null,null,null,"Annual",{"$f":"AVERAGE(L37:L48)","v":{"$error":"#DIV/0!"}},{"$f":"MAX(M37:M48)","v":0},{"$f":"AVERAGE(N37:N48)","v":{"$error":"#DIV/0!"}},{"$f":"MAX(O37:O48)","v":0}]
[]
[null,null,null,null,null,null,null,null,null,{"$f":"+A5","v":2024},"mg/Nm3","Monthly mean of half-hourly averages","Highest half- hourly average","Monthly mean of  daily averages","Highest daily average"]
[null,null,null,null,null,null,null,null,null,"A4","Jan"]
[null,null,null,null,null,null,null,null,null,null,"Feb"]
[null,null,null,null,null,null,null,null,null,null,"Mar"]
[null,null,null,null,null,null,null,null,null,null,"Apr"]
[null,null,null,null,null,null,null,null,null,null,"May"]
[null,null,null,null,null,null,null,null,null,null,"Jun"]
[null,null,null,null,null,null,null,null,null,null,"Jul"]
[null,null,null,null,null,null,null,null,null,null,"Aug"]
[null,null,null,null,null,null,null,null,null,null,"Sep"]
[null,null,null,null,null,null,null,null,null,null,"Oct"]
[null,null,null,null,null,null,null,null,null,null,"Nov"]
[null,null,null,null,null,null,null,null,null,null,"Dec"]
[null,null,null,null,null,null,null,null,null,null,"Annual",{"$f":"AVERAGE(L52:L63)","v":{"$error":"#DIV/0!"}},{"$f":"MAX(M52:M63)","v":0},{"$f":"AVERAGE(N52:N63)","v":{"$error":"#DIV/0!"}},{"$f":"MAX(O52:O63)","v":0}]
[]
[null,null,null,null,null,null,null,null,null,{"$f":"+A5","v":2024},"mg/Nm3","Monthly mean of half-hourly averages","Highest half- hourly average","Monthly mean of  daily averages","Highest daily average"]
[null,null,null,null,null,null,null,null,null,"A5","Jan"]
[null,null,null,null,null,null,null,null,null,null,"Feb"]
[null,null,null,null,null,null,null,null,null,null,"Mar"]
[null,null,null,null,null,null,null,null,null,null,"Apr"]
[null,null,null,null,null,null,null,null,null,null,"May"]
[null,null,null,null,null,null,null,null,null,null,"Jun"]
[null,null,null,null,null,null,null,null,null,null,"Jul"]
[null,null,null,null,null,null,null,null,null,null,"Aug"]
[null,null,null,null,null,null,null,null,null,null,"Sep"]
[null,null,null,null,null,null,null,null,null,null,"Oct"]
[null,null,null,null,null,null,null,null,null,null,"Nov"]
[null,null,null,null,null,null,null,null,null,null,"Dec"]
[null,null,null,null,null,null,null,null,null,null,"Annual",{"$f":"AVERAGE(L67:L78)","v":{"$error":"#DIV/0!"}},{"$f":"MAX(M67:M78)","v":0},{"$f":"AVERAGE(N67:N78)","v":{"$error":"#DIV/0!"}},{"$f":"MAX(O67:O78)","v":0}]

{"sheet":"Template changes log","index":25,"n_rows":18,"n_cols":3,"rows_kept":18,"cut":false,"hidden":false,"merged":[]}
["Log of changes to template (Environment Agency use only)"]
[]
["Date","Description of change","New version number and date"]
["2024-01-16","Air (periodic) tab: corrected default O2 reference from 6 to 11% ","Version 23.5a (for incinerators) - 16/01/2024"]
["2024-09-23","Air (periodic) tab: corrected symbol for Thallium to Tl"]
["2024-09-23","Air (periodic) tab: removed last year's references to different emission limit values applying from 03/12/23 and updated all relevant ELVs"]
["2024-09-23","Tabs for continuously monitored pollutants (HCl, SO2 etc.): changed terminology in table headings to improve clarity"]
["2024-09-23","Tabs for continuously monitored pollutants (HCl, SO2 etc.): removed last year's references to different emission limit values applying from 03/12/23 and updated all relevant ELVs"]
["2024-09-23","Perf 1 tab: updated formula for water usage to report m3 rather than litres and corrected error with formula copying operator name"]
["2024-09-23","Operational Summary tab: table added on start-ups and shut-downs"]
["2024-09-23","Operational Summary tab: table added on dioxins and mercury protocols"]
["2024-09-23","Operational Summary tab: table added on AST, QAL 2 and calibration functions"]
["2024-09-23","CO2 N2O tab: various changes made to notes to reflect the fact that most plants should now have calibrated CEMS and flow meters + some have C14 samplers and more up to date industry data","Version 24a (for incinerators) - 23/09/24"]
["2024-11-08","CO2 N2O tab: Changed the N2O CO2 equivalence factor from 298 to 265 in line with recently updated government greenhouse gas figures: https://www.gov.uk/government/publications/greenhouse-gas-reporting-conversion-factors-2024"]
["2024-11-08","CO2 N2O tab: Added an additional requirement for municipal EfW plants to state the yearly average biogenic percentage of the waste by mass, and reference to a document which sets out a methodology for calculating NCV of waste from the results of C14 sampling."]
["2024-11-08","Permit Compliance tab: Two additional columns added + explanatory notes to the table entitled \"Summary of non-compliances under the permit\" to allow CCS scores to be stated where relevant. "]
["2024-11-08","Residue Quality tab: Note added explaining application of TOC and LOI limits and asking operators to report both metrics where measured. ","Version 24.1a (for incinerators) - 08/11/24"]
["2024-11-27","Operational Summary tab: Tables on mercury & dioxins protocols and ASTs removed (covered instead by new tables added to updated Air 9 periodic monitoring form)","Version 24.2a (for incinerators) - 27/11/24"]